Workbook

Sheet ItemConfig
B1: Id | C1: Name | D1: BackpackOrNot | E1: ResourceID | F1: ItemType | G1: ItemBaseType | H1: ItemDescribe | I1: PropertyName | J1: Quantity | K1: Isopen | L1: IfResolve | M1: ResolveReward | N1: UseType | O1: RewardGroup | P1: UsePerCount | Q1: Jump | R1: UseJump | S1: IsSave | T1: IsShow | U1: HeroStar | V1: Ifopen | W1: ItemNumlimit | X1: RingLevel | Y1: ExtraReward | Z1: NoUse
B2: int | C2: string | D2: bool | E2: int | F2: int | G2: int | H2: string | I2: int | J2: int | K2: bool | L2: int | M2: string | N2: int | O2: mut,int#int,1 | P2: int | Q2: mut,int#int,1 | R2: int | S2: int | T2: int | U2: mut,int#int,1 | V2: int | W2: int | X2: int | Y2: mut,int#int,2 | Z2: string
B3: 2 | C3: 2 | D3: 2 | E3: 3 | F3: 2 | G3: 2 | H3: 3 | I3: 3 | J3: 2 | K3: 2 | L3: 2 | M3: 2 | N3: 2 | O3: 2 | P3: 2 | Q3: 3 | R3: 3 | S3: 2 | T3: 3 | U3: 2 | V3: 4 | W3: 2 | X3: 3 | Y3: 2 | Z3: 0
B4: 道具id | C4: 道具名 | D4: 道具是否进背包 | E4: 资源ID | F4: 道具类型 （0无特殊分类，1角色，2角色碎片，3装备，4异妖配件，5随机道具，6符文,7蓝图，8铁矿石，9天赋材料，10宝箱，11玩家头像框，12改名卡，13魂印，14法宝，15头像，16称号，17皮肤，18坐骑，19宝器，20自选箱） | G4: 道具类型（该道具在哪个背包显示1特殊 2碎片 3妖魂 4装备 5宝器 6魂印 7材料） | H4: 道具描述对应的字符串 | I4: 角色碎片属性（1、火；2、风；3、水；4、地；5.光；6.暗） | J4: 道具品质 如果为角色和角色碎片就表示初始星级 | K4: 是否自动打开 | L4: 道具是否可以分解 0不可分解 1可分解 | M4: 道具分解奖励组 | N4: 使用类型 0不使用 1掉落组 2N选1 | O4: 掉落组Id | P4: 每次兑换1个需要的数量 比如N换1，1换1 | Q4: 道具获取跳转 | R4: 道具使用跳转 | S4: 清探索背包是否保留 (0不保留，1保留） | T4: 是否进探索携带 0不携带 1携带 | U4: 当道具类型为角色时，从此处读取角色id#角色星级 | V4: 是否进版本 (0不进，1进） | W4: 道具的叠加上限 （最多20亿） | X4: 天赋材料品阶 | Y4: 额外掉落 0掉落不显示 1掉落显示 |额外掉落物品id#num | Z4: 备注
A5: 默认值 | B5: 0 | C5: ="" ->  | D5: FALSE | E5: 0 | F5: 0 | G5: 0 | H5: 0 | J5: 0 | K5: FALSE | L5: 0 | N5: 0 | O5: 0 | P5: 0 | S5: 1 | T5: 0 | V5: 0 | W5: 0
A6: 正确性校对
A7: 校对值 | E7: 3 | F7: 4 | G7: 5 | H7: 6 | J7: 7 | K7: 8 | L7: 9 | M7: 10 | N7: 11 | O7: 12 | P7: 13 | Q7: 14 | S7: 15 | T7: 16 | U7: 17 | V7: 18 | W7: 19
B8: 1 | C8: 行动力 | D8: FALSE | E8: 10001 | F8: 0 | H8: 无尽副本内移动需消耗行动力，耗尽后无法移动。 | J8: 1 | L8: 0 | M8: 100001 | V8: 1 | W8: 999999999
B9: 3 | C9: 成长护符 | D9: FALSE | E9: 10003 | F9: 0 | H9: 神将升级材料。 | J9: 3 | L9: 0 | M9: 100001 | Q9: 26081#26082#68001 | R9: 22001 | S9: 1 | V9: 1 | W9: 999999999
B10: 4 | C10: 九转金丹 | D10: TRUE | E10: 10004 | F10: 0 | G10: 1 | H10: 神将突破材料。 | J10: 5 | L10: 0 | M10: 100001 | Q10: 26081#26082#1011 | R10: 22001 | V10: 1 | W10: 999999999
B11: 5 | C11: 灵丹 | D11: TRUE | E11: 10005 | F11: 0 | G11: 1 | H11: 妖魂进阶道具。 | J11: 5 | L11: 0 | M11: 100001 | Q11: 21001#20002#46001 | R11: 3001 | V11: 1 | W11: 999999999
B12: 6 | C12: 归元髓液 | D12: TRUE | E12: 10006 | F12: 0 | G12: 1 | H12: 异妖整体进阶道具。 | J12: 5 | L12: 0 | M12: 100001 | Q12: 20003#21001 | R12: 3001 | V12: 1 | W12: 999999999
B13: 14 | C13: 金币 | D13: FALSE | E13: 10014 | F13: 0 | H13: 最基本的货币。 | J13: 3 | L13: 0 | M13: 100001 | Q13: 26082#30002#67001 | S13: 1 | V13: 1 | W13: 999999999
B14: 15 | C14: 魂晶 | D14: FALSE | E14: 10015 | F14: 0 | H14: 非常珍贵的货币，可以购买礼包或兑换妖晶。 | J14: 5 | L14: 0 | M14: 100001 | V14: 1 | W14: 999999999
B15: 16 | C15: 妖晶 | D15: FALSE | E15: 10016 | F15: 0 | H15: 非常珍贵的货币。 | J15: 5 | L15: 0 | M15: 100001 | Q15: 60001#26081#26082 | V15: 1 | W15: 999999999
B16: 17 | C16: 经验 | D16: FALSE | E16: 12036 | F16: 0 | H16: 提升玩家的等级。 | J16: 2 | L16: 0 | M16: 100001 | Q16: 26081#26082 | V16: 1 | W16: 999999999
B17: 18 | C17: 特权经验 | D17: FALSE | E17: 10018 | F17: 0 | H17: 消耗魂晶时，将获得一定量的特权经验。累计特权经验可以获得更高的特权等级 | J17: 3 | L17: 0 | M17: 100001 | V17: 1 | W17: 999999999
B18: 19 | C18: 点将神符 | D18: TRUE | E18: 10019 | F18: 0 | G18: 1 | H18: 点将台随机召唤神将的道具。\n请在点将台中使用。 | J18: 5 | L18: 0 | M18: 100001 | Q18: 36001 | R18: 1023 | V18: 1 | W18: 999999999
B19: 20 | C19: 唤元神符 | D19: TRUE | E19: 10020 | F19: 0 | G19: 1 | H19: 四元阵招募特定系神将的道具。\n请在四元阵中使用。 | J19: 5 | L19: 0 | M19: 100001 | Q19: 1028#36006 | R19: 1002 | V19: 1 | W19: 999999999
B20: 21 | C20: 妖魂魔符 | D20: TRUE | E20: 11508 | F20: 0 | G20: 1 | H20: 开启秘宝阁时消耗的道具。 | J20: 5 | L20: 0 | Q20: 46001#20002#36001 | R20: 21002 | V20: 1 | W20: 999999999
B21: 22 | C21: 妖灵玉 | D21: TRUE | E21: 11509 | F21: 0 | G21: 1 | H21: 秘宝商店兑换道具时消耗的货币。 | J21: 5 | L21: 0 | Q21: 21001 | R21: 20009 | V21: 1 | W21: 999999999
B22: 23 | C22: 挑战券 | D22: TRUE | E22: 11510 | F22: 0 | G22: 1 | H22: 参与千战逐胜台时需要的门票。 | J22: 4 | L22: 0 | Q22: 12001#1022#60001 | R22: 8002 | V22: 1 | W22: 999999999
B23: 24 | C23: 逐胜徽章 | D23: TRUE | E23: 11511 | F23: 0 | G23: 1 | H23: 千战逐胜台胜利的象征。可以在逐胜商店里使用。 | J23: 5 | L23: 0 | Q23: 8001 | R23: 20010 | V23: 1 | W23: 999999999
B24: 26 | C24: 仙缘余尘 | D24: TRUE | E24: 11513 | F24: 0 | G24: 1 | H24: 神将所留下的神秘粉末，可以在仙尘商店里兑换道具。 | J24: 5 | L24: 0 | Q24: 24005 | R24: 20004 | V24: 1 | W24: 999999999
B25: 27 | C25: 普通入场券 | D25: FALSE | E25: 11514 | F25: 0 | G25: 1 | H25: 剧情副本入场时需要的门票，每次消耗1个。 | J25: 5 | L25: 0 | V25: 1 | W25: 999999999
B26: 28 | C26: 精英入场券 | D26: FALSE | E26: 11515 | F26: 0 | G26: 1 | H26: 精英副本入场时需要的门票，每次消耗1个。 | J26: 5 | L26: 0 | V26: 1 | W26: 999999999
B27: 29 | C27: 火魂玉 | D27: FALSE | E27: 12050 | F27: 0 | G27: 1 | H27: 强化宝物所需要消耗的道具 | J27: 5 | L27: 0 | V27: 1 | W27: 999999999
B28: 30 | C28: 活跃度 | D28: FALSE | E28: 12042 | F28: 0 | G28: 1 | H28: 历练的象征，积累到一定数量可领取活跃度宝箱 | J28: 5 | L28: 0 | Q28: 12001 | V28: 1 | W28: 999999999
B29: 31 | C29: 回春散 | D29: TRUE | E29: 12037 | F29: 0 | G29: 1 | H29: 森罗幻境中回复己方英雄生命的道具。 | J29: 5 | L29: 0 | V29: 1 | W29: 999999999
B30: 32 | C30: 琉璃晶 | D30: TRUE | E30: 12052 | F30: 0 | G30: 1 | H30: 琉璃精粹化成的晶体，用于精炼宝物时消耗。 | J30: 4 | L30: 0 | R30: 22001 | V30: 1 | W30: 999999999
B31: 43 | C31: 次元炸弹 | D31: TRUE | E31: 80011 | F31: 0 | G31: 1 | H31: 使用后，消灭当前试炼副本层所有怪物，并获得100点试炼精气。 | J31: 5 | L31: 0 | Q31: 36004 | S31: 1 | T31: 1 | V31: 1 | W31: 999999999
B32: 44 | C32: 外敌挑战券 | D32: FALSE | E32: 12024 | F32: 0 | G32: 1 | H32: 挑战外敌时所需要的门票。 | J32: 5 | L32: 0 | V32: 1 | W32: 999999999
B33: 45 | C33: 试炼币 | D33: FALSE | E33: 12026 | F33: 0 | G33: 1 | H33: 击败试炼副本的怪物时获取的货币。可以在增益兑换点处兑换增益。 | J33: 4 | L33: 0 | Q33: 30001 | S33: 1 | T33: 1 | V33: 1 | W33: 999999999
B34: 46 | C34: 云梦华羽 | D34: TRUE | E34: 12027 | F34: 0 | G34: 1 | H34: 云梦祈福时消耗的道具。 | J34: 5 | L34: 0 | R34: 1026 | V34: 1 | W34: 999999999
B35: 47 | C35: 时光沙漏 | D35: TRUE | E35: 12028 | F35: 0 | G35: 1 | H35: 极速探索消耗的道具。 | J35: 5 | L35: 0 | V35: 1 | W35: 999999999
B36: 48 | C36: 判官笔 | D36: TRUE | E36: 12028 | F36: 0 | G36: 1 | H36: 大闹天宫中消耗的道具。 | J36: 5 | L36: 0 | Q36: 20002 | V36: 1 | W36: 999999999
B37: 53 | C37: 试炼令 | D37: FALSE | E37: 12025 | F37: 0 | G37: 1 | H37: 试炼塔心魔试炼消耗的道具。 | J37: 5 | L37: 0 | V37: 1 | W37: 999999999
B38: 54 | C38: 秘境外敌召唤道具 | D38: FALSE | E38: 11502 | F38: 0 | G38: 1 | H38: 斗灵境召唤外敌消耗的道具。 | J38: 5 | L38: 0 | V38: 1 | W38: 999999999
B39: 55 | C39: 圣物 | D39: FALSE | E39: 12022 | F39: 0 | H39: 强化自身的圣物。 | J39: 5 | L39: 0 | V39: 1 | W39: 999999999
B40: 56 | C40: 天宫秘宝积分 | D40: FALSE | E40: 12036 | F40: 0 | H40: 天宫秘宝积分。 | J40: 5 | L40: 0 | V40: 1 | W40: 999999999
B41: 60 | C41: 幸运探宝券 | D41: TRUE | E41: 12033 | F41: 0 | G41: 1 | H41: 幸运探宝道具。\n请在幸运探宝活动中使用。 | J41: 4 | L41: 0 | M41: 100001 | Q41: 1004#60001 | R41: 1027 | V41: 1 | W41: 999999999
B42: 61 | C42: 高级探宝券 | D42: TRUE | E42: 12034 | F42: 0 | G42: 1 | H42: 高级探宝道具。\n请在高级探宝活动中使用。 | J42: 5 | L42: 0 | M42: 100001 | Q42: 36001 | R42: 1028 | V42: 1 | W42: 999999999
B43: 62 | C43: 幸运探宝刷新次数 | D43: FALSE | E43: 11502 | F43: 0 | G43: 1 | H43: 幸运探宝刷新消耗的道具。 | J43: 4 | L43: 0 | V43: 1 | W43: 1
B44: 63 | C44: 高级探宝刷新次数 | D44: FALSE | E44: 11502 | F44: 0 | G44: 1 | H44: 高级探宝刷新消耗的道具。 | J44: 5 | L44: 0 | V44: 1 | W44: 1
B45: 64 | C45: 改名卡 | D45: TRUE | E45: 12032 | F45: 12 | G45: 1 | H45: 玩家改名消耗的道具。 | J45: 5 | L45: 0 | V45: 1 | W45: 999999999
B46: 65 | C46: 公会御令 | D46: TRUE | E46: 11507 | F46: 0 | G46: 1 | H46: 公会中使用的货币。可以在公会商店里使用。 | J46: 4 | L46: 0 | Q46: 75001#76001 | R46: 20007 | V46: 1 | W46: 999999999
B47: 66 | C47: 星魂 | D47: TRUE | E47: 12029 | F47: 0 | G47: 1 | H47: 分解魂印获得的道具，可以在魂印商店使用。 | J47: 4 | L47: 0 | Q47: 71001 | R47: 20012 | V47: 1 | W47: 999999999
B48: 67 | C48: 神州令 | D48: TRUE | E48: 12035 | F48: 0 | G48: 1 | H48: 限时兑换所需道具。 | J48: 4 | L48: 0 | Q48: 26082 | R48: 1029 | V48: 1 | W48: 999999999
B49: 68 | C49: 仙谕积分 | D49: FALSE | E49: 11501 | F49: 0 | H49: 仙谕密令的积分，用于提升仙谕密令的等级。 | J49: 4 | L49: 0 | V49: 1 | W49: 999999999
B50: 69 | C50: 友情点 | D50: FALSE | E50: 10002 | F50: 0 | H50: 好友互赠的道具，可在友情商店兑换商品。 | J50: 3 | L50: 0 | M50: 100001 | Q50: 25001 | V50: 1 | W50: 999999999
B51: 70 | C51: 返元露 | D51: TRUE | E51: 12037 | F51: 0 | G51: 1 | H51: 神将归元消耗的道具。 | J51: 5 | L51: 0 | R51: 22001 | V51: 1 | W51: 999999999
B52: 71 | C52: 轩辕宝境次数 | D52: FALSE | E52: 12044 | F52: 0 | G52: 1 | H52: 负责记录轩辕宝境次数。 | J52: 6 | L52: 0 | V52: 1 | W52: 999999999
B53: 72 | C53: 公会副本挑战次数 | D53: FALSE | E53: 12044 | F53: 0 | G53: 1 | H53: 负责记录公会副本次数。 | J53: 6 | L53: 0 | V53: 1 | W53: 999999999
B54: 73 | C54: 剧情星级额外奖励 | D54: FALSE | E54: 10019 | F54: 0 | G54: 1 | H54: 剧情副本3星通关，可获得额外星级奖励。豪华月卡用户专属福利。 | J54: 5 | L54: 0 | Q54: 36004 | S54: 0 | V54: 1 | W54: 1
B55: 74 | C55: 元神玉 | D55: TRUE | E55: 12038 | F55: 0 | G55: 1 | H55: 元神商店兑换道具时消耗的货币。 | J55: 5 | L55: 0 | Q55: 1002 | R55: 20008 | V55: 1 | W55: 999999999
B56: 77 | C56: 竞猜币 | D56: FALSE | E56: 11006 | F56: 0 | G56: 1 | H56: 巅峰赛中竞猜使用的道具。 | J56: 5 | L56: 0 | V56: 1 | W56: 999999999
B57: 78 | C57: 东海寻仙免费抽奖次数 | D57: FALSE | E57: 11502 | F57: 0 | G57: 1 | H57: 东海寻仙免费抽奖次数。 | J57: 5 | L57: 0 | V57: 1 | W57: 999999999
B58: 79 | C58: 寻龙珏 | D58: FALSE | E58: 12039 | F58: 0 | G58: 1 | H58: 天宫寻宝消耗的道具。 | J58: 4 | L58: 0 | Q58: 26082#26081 | R58: 60001 | V58: 1 | W58: 999999999
B59: 80 | C59: 藏宝图 | D59: FALSE | E59: 11506 | F59: 0 | G59: 1 | H59: 天宫寻宝刷新寻宝任务消耗的道具。 | J59: 4 | L59: 0 | Q59: 1027 | R59: 60001 | V59: 1 | W59: 999999999
B60: 81 | C60: 高级寻宝 | D60: FALSE | E60: 12040 | F60: 0 | G60: 1 | H60: 天宫寻宝高级特权的证明，每日首次藏宝图、妖晶刷新必出金色传说品质宝藏。购买后永久有效。 | J60: 5 | L60: 0 | V60: 1 | W60: 1
B61: 82 | C61: 豪华寻宝 | D61: FALSE | E61: 12041 | F61: 0 | G61: 1 | H61: 天宫寻宝豪华特权的证明，每日第3次藏宝图、妖晶刷新必出红色不朽品质宝藏。购买后永久有效。 | J61: 6 | L61: 0 | V61: 1 | W61: 1
B62: 83 | C62: 天宫寻宝免费刷新次数 | D62: FALSE | E62: 11506 | F62: 0 | G62: 1 | H62: 天宫寻宝免费刷新寻宝任务消耗的道具。 | J62: 4 | L62: 0 | V62: 1 | W62: 2
B63: 86 | C63: 巅峰之证 | D63: TRUE | E63: 11517 | F63: 0 | G63: 1 | H63: 巅峰赛胜利的象征。可以在巅峰商店里使用。 | J63: 5 | L63: 0 | Q63: 57001 | R63: 20013 | V63: 1 | W63: 999999999
B64: 87 | C64: 寻仙玉 | D64: TRUE | E64: 11003 | F64: 0 | G64: 1 | H64: 用于寻求神明帮助的宝玉，可在破阵诛仙中进行一次抽卡。 | J64: 5 | L64: 0 | V64: 1 | W64: 999999999
B65: 88 | C65: 极速探索 | D65: FALSE | E65: 12043 | F65: 0 | G65: 1 | H65: 极速探索特权的证明，每日可额外增加2次免费极速探索机会，和8次额外购买机会。有效期30天。 | J65: 5 | L65: 0 | V65: 1 | W65: 1
B66: 89 | C66: 挂机收益 | D66: FALSE | E66: 12044 | F66: 0 | G66: 1 | H66: 挂机收益特权的证明，挂机额外获得50%的成长护符及金币收益。有效期30天。 | J66: 6 | L66: 0 | V66: 1 | W66: 1
B67: 90 | C67: 日常副本次数 | D67: FALSE | E67: 12044 | F67: 0 | G67: 1 | H67: 负责记录日常副本次数。 | J67: 6 | L67: 0 | V67: 1 | W67: 999999999
B68: 91 | C68: 召唤神符 | D68: TRUE | E68: 12048 | F68: 0 | G68: 1 | H68: 普通召唤消耗的道具 | J68: 4 | L68: 0 | Q68: 12001#1027 | R68: 1023 | W68: 999999999
B69: 92 | C69: 置换玉 | D69: FALSE | E69: 12051 | F69: 0 | H69: 置换神将时消耗的稀有货币 | J69: 5 | L69: 0 | W69: 999999999
B70: 93 | C70: 战功 | D70: FALSE | E70: 12049 | F70: 0 | H70: 大闹天宫完成时间获得的稀有货币，可于天宫商店购物消耗 | J70: 5 | L70: 0 | Q70: 64001 | R70: 20005 | W70: 999999999
B71: 94 | C71: 仙缘积分 | D71: FALSE | E71: 12036 | F71: 0 | H71: 进行仙缘抽卡消耗的积分。 | J71: 5 | L71: 0 | V71: 1 | W71: 999999999
B72: 95 | C72: 赤晶石 | D72: TRUE | E72: 12053 | F72: 0 | G72: 1 | H72: 融入了太阳精粹的赤红色晶石，限时兑换所需道具。 | J72: 4 | L72: 0 | Q72: 26082 | R72: 1029 | V72: 1 | W72: 999999999
B73: 96 | C73: 公会经验 | D73: FALSE | E73: 12036 | F73: 0 | H73: 军团发展中所积累的经验，积累到一定时可以提升军团等级 | J73: 5 | L73: 0 | V73: 1 | W73: 999999999
B74: 1001 | C74: 陨铁 | D74: TRUE | E74: 12023 | F74: 8 | G74: 7 | H74: 传说自天外而来的神铁，精华内敛，奇重无比，可用来进阶法宝。 | J74: 1 | L74: 0 | Q74: 70001#36001 | R74: 22001 | V74: 1 | W74: 999999999
B75: 1002 | C75: 乾坤宝匙 | D75: TRUE | E75: 8000001 | F75: 0 | G75: 7 | H75: 蕴含有乾坤之力，可在乾坤宝盒活动中进行一次抽卡 | J75: 1 | L75: 0 | V75: 1 | W75: 999999999
B76: 1003 | C76: 乾坤令 | D76: FALSE | E76: 12030 | F76: 0 | G76: 7 | H76: 参与乾坤宝囊活动获取的道具，可在乾坤商店中兑换心仪的物品 | J76: 1 | L76: 0 | R76: 5001 | V76: 1 | W76: 999999999
B77: 1004 | C77: 定卦神锄 | D77: TRUE | E77: 11003 | F77: 0 | G77: 7 | H77: 挖矿必备 | J77: 1 | L77: 0 | W77: 999999999
B78: 1201 | C78: 上古钱币 | D78: TRUE | E78: 12031 | F78: 0 | G78: 1 | H78: 古纪元使用的货币，商人们可能会对它有兴趣。 | J78: 1 | L78: 0 | Q78: 46001 | R78: 46001 | S78: 1 | T78: 1 | V78: 1 | W78: 999999999
B79: 1508 | C79: 绿色装备 | D79: TRUE | E79: 1510 | F79: 0 | G79: 1 | H79: 绿色品质装备。 | J79: 2 | L79: 0 | T79: 1 | V79: 1 | W79: 999999999
B80: 1509 | C80: 蓝色装备 | D80: TRUE | E80: 1511 | F80: 0 | G80: 1 | H80: 蓝色品质装备。 | J80: 3 | L80: 0 | T80: 1 | V80: 1 | W80: 999999999
B81: 1510 | C81: 紫色装备 | D81: TRUE | E81: 1512 | F81: 0 | G81: 1 | H81: 紫色品质装备。 | J81: 4 | L81: 0 | T81: 1 | V81: 1 | W81: 999999999
B82: 1511 | C82: 金色装备 | D82: TRUE | E82: 1513 | F82: 0 | G82: 1 | H82: 金色品质装备。 | J82: 5 | L82: 0 | T82: 1 | V82: 1 | W82: 999999999
B83: 1512 | C83: 红色装备 | D83: TRUE | E83: 1513 | F83: 0 | G83: 1 | H83: 红色品质装备。 | J83: 6 | L83: 0 | T83: 1 | V83: 1 | W83: 999999999
B84: 1518 | C84: 解锁进阶奖励 | D84: FALSE | E84: 11015 | F84: 10 | G84: 1 | H84: 购买进阶卡后，可解锁活动进阶奖励。到达指定等级就可领取对应奖励。 | J84: 5 | K84: 0 | L84: 0 | N84: 1 | O84: 481 | P84: 1 | S84: 0 | T84: 0 | V84: 1 | W84: 999999999
B85: 1519 | C85: 解锁每日积分包 | D85: FALSE | E85: 11015 | F85: 10 | G85: 1 | H85: 购买进阶卡后，活动期间在每日邮件中可获得积分*200。 | J85: 5 | K85: 0 | L85: 0 | N85: 1 | O85: 482 | P85: 1 | S85: 0 | T85: 0 | V85: 1 | W85: 999999999
B86: 1520 | C86: 迷魂之心 | D86: TRUE | E86: 1534 | F86: 0 | G86: 1 | H86: 迷魂兽的心脏，可解除迷魂兽的致幻能力。 | J86: 1 | L86: 0 | S86: 0 | V86: 1 | W86: 999999999
B87: 1521 | C87: 阵石 | D87: TRUE | E87: 1536 | F87: 0 | G87: 1 | H87: 开启吊桥必须用到的钥匙。 | J87: 1 | L87: 0 | S87: 0 | V87: 1 | W87: 999999999
B88: 1522 | C88: 妖兽精血 | D88: TRUE | E88: 1533 | F88: 0 | G88: 1 | H88: 蓝色的幡，可以将怪物体内的魔王气息凝聚成结晶。 | J88: 1 | L88: 0 | S88: 0 | V88: 1 | W88: 999999999
B89: 1523 | C89: 刻笔 | D89: TRUE | E89: 1532 | F89: 0 | G89: 1 | H89: 刻画阵纹所需要的笔。 | J89: 1 | L89: 0 | S89: 0 | V89: 1 | W89: 999999999
B90: 1524 | C90: 阵石 | D90: TRUE | E90: 1536 | F90: 0 | G90: 1 | H90: 布置阵法所需要的阵石。 | J90: 1 | L90: 0 | S90: 0 | V90: 1 | W90: 999999999
B91: 1525 | C91: 破损的兵器 | D91: TRUE | E91: 1535 | F91: 0 | G91: 1 | H91: 残破不堪的兵器。 | J91: 1 | L91: 0 | S91: 0 | V91: 1 | W91: 999999999
B92: 1526 | C92: 记忆碎片 | D92: TRUE | E92: 1537 | F92: 0 | G92: 1 | H92: 零星的记忆在内心世界中的具象化表现。 | J92: 1 | L92: 0 | S92: 0 | V92: 1 | W92: 999999999
B93: 1527 | C93: 木材 | D93: TRUE | E93: 1538 | F93: 0 | G93: 1 | H93: 上好的木材，可用来修复断桥。 | J93: 1 | L93: 0 | S93: 0 | V93: 1 | W93: 999999999
B94: 1528 | C94: 藏宝图 | D94: TRUE | E94: 1539 | F94: 0 | G94: 1 | H94: 上面有着两个特殊标记，可以去看看。 | J94: 1 | L94: 0 | S94: 0 | V94: 1 | W94: 999999999
B95: 1529 | C95: 半卷藏宝图 | D95: TRUE | E95: 1540 | F95: 0 | G95: 1 | H95: 只有一半的藏宝图，貌似两张可以合成一整幅。 | J95: 1 | L95: 0 | S95: 0 | V95: 1 | W95: 999999999
B96: 1530 | C96: 淡水 | D96: TRUE | E96: 1530 | F96: 0 | G96: 1 | H96: 可供人饮用的淡水。 | J96: 1 | L96: 0 | S96: 0 | V96: 1 | W96: 999999999
B97: 1531 | C97: 兽肉 | D97: TRUE | E97: 1531 | F97: 0 | G97: 1 | H97: 狐熊的肉，肉质筋道，口味鲜美。 | J97: 1 | L97: 0 | S97: 0 | V97: 1 | W97: 999999999
B98: 1532 | C98: 幻魂草 | D98: TRUE | E98: 1546 | F98: 0 | G98: 1 | H98: 具有强力致幻作用的草药。 | J98: 1 | L98: 0 | S98: 0 | V98: 1 | W98: 999999999
B99: 1533 | C99: 平民的财物 | D99: TRUE | E99: 1531 | F99: 0 | G99: 1 | H99: 被地痞抢走的财物。 | J99: 1 | L99: 0 | S99: 0 | V99: 1 | W99: 999999999
B100: 1534 | C100: 法阵灵石 | D100: TRUE | E100: 1536 | F100: 0 | G100: 1 | H100: 蕴含着强大能量的石头，十分稀有。 | J100: 1 | L100: 0 | S100: 0 | V100: 1 | W100: 999999999
B101: 1535 | C101: 长青叶 | D101: TRUE | E101: 1546 | F101: 0 | G101: 1 | H101: 花妖身上生长的叶子，拥有疗伤的功效。 | J101: 1 | L101: 0 | S101: 0 | V101: 1 | W101: 999999999
B102: 1536 | C102: 止血散 | D102: TRUE | E102: 1547 | F102: 0 | G102: 1 | H102: 用研磨成的药粉，是疗伤止血的珍贵药物。 | J102: 1 | L102: 0 | S102: 0 | V102: 1 | W102: 999999999
B103: 1537 | C103: 精纯精血 | D103: TRUE | E103: 1533 | F103: 0 | G103: 1 | H103: 充斥着浓郁的妖兽之力。 | J103: 1 | L103: 0 | S103: 0 | V103: 1 | W103: 999999999
B104: 1538 | C104: 忠义之心 | D104: TRUE | E104: 1541 | F104: 0 | G104: 1 | H104: 代表忠义的忠义之心。 | J104: 1 | L104: 0 | S104: 0 | V104: 1 | W104: 999999999
B105: 1539 | C105: 仁慈之心 | D105: TRUE | E105: 1542 | F105: 0 | G105: 1 | H105: 代表仁慈的仁慈之心。 | J105: 1 | L105: 0 | S105: 0 | V105: 1 | W105: 999999999
B106: 1540 | C106: 坚毅之心 | D106: TRUE | E106: 1543 | F106: 0 | G106: 1 | H106: 代表坚毅的坚毅之心。 | J106: 1 | L106: 0 | S106: 0 | V106: 1 | W106: 999999999
B107: 1541 | C107: 羁绊之心 | D107: TRUE | E107: 1544 | F107: 0 | G107: 1 | H107: 代表同伴的羁绊之心。 | J107: 1 | L107: 0 | S107: 0 | V107: 1 | W107: 999999999
B108: 1542 | C108: 耳目之石 | D108: TRUE | E108: 1548 | F108: 0 | G108: 1 | H108: 代表耳目的石头，象征着听觉和视觉。 | J108: 1 | L108: 0 | S108: 0 | V108: 1 | W108: 999999999
B109: 1543 | C109: 饕餮之津 | D109: TRUE | E109: 1549 | F109: 0 | G109: 1 | H109: 代表口鼻的液体，象征着嗅觉和味觉。 | J109: 1 | L109: 0 | S109: 0 | V109: 1 | W109: 999999999
B110: 1544 | C110: 生死之悟 | D110: TRUE | E110: 1550 | F110: 0 | G110: 1 | H110: 代表生死的雾气，象征着生死。 | J110: 1 | L110: 0 | S110: 0 | V110: 1 | W110: 999999999
B111: 1545 | C111: 七叶草 | D111: TRUE | E111: 1546 | F111: 0 | G111: 1 | H111: 长有七叶，七叶不同。 | J111: 1 | L111: 0 | S111: 0 | V111: 1 | W111: 999999999
B112: 1546 | C112: 兽骨 | D112: TRUE | E112: 1531 | F112: 0 | G112: 1 | H112: 山中老虎的虎骨。 | J112: 1 | L112: 0 | S112: 0 | V112: 1 | W112: 999999999
B113: 1547 | C113: 天山雪莲 | D113: TRUE | E113: 1551 | F113: 0 | G113: 1 | H113: 天山山顶的莲花，十分稀有。 | J113: 1 | L113: 0 | S113: 0 | V113: 1 | W113: 999999999
B114: 1548 | C114: 妖兽毛皮 | D114: TRUE | E114: 1531 | F114: 0 | G114: 1 | H114: 从妖兽身上收集到的毛皮。 | J114: 1 | L114: 0 | S114: 0 | V114: 1 | W114: 999999999
B115: 1549 | C115: 墓穴宝石 | D115: TRUE | E115: 1529 | F115: 0 | G115: 1 | H115: 不知名的古墓中存放的宝石，历经千年依旧充满光泽。 | J115: 1 | L115: 0 | S115: 0 | V115: 1 | W115: 999999999
B116: 1550 | C116: 请帖 | D116: TRUE | E116: 1551 | F116: 0 | G116: 1 | H116: 神秘组织的请帖。 | J116: 1 | L116: 0 | S116: 0 | V116: 1 | W116: 999999999
B117: 1551 | C117: 气息结晶 | D117: TRUE | E117: 1551 | F117: 0 | G117: 1 | H117: 城中人或物的执念凝聚的结晶。 | J117: 1 | L117: 0 | S117: 0 | V117: 1 | W117: 999999999
B118: 1552 | C118: 大块气息结晶 | D118: TRUE | E118: 1531 | F118: 0 | G118: 1 | H118: 由人或妖兽中的强者的执念凝聚成的结晶，比一般的结晶更加珍贵。 | J118: 1 | L118: 0 | S118: 0 | V118: 1 | W118: 999999999
B119: 1553 | C119: 透镜 | D119: TRUE | E119: 1529 | F119: 0 | G119: 1 | H119: 使用特殊材料制成的透镜，能看到妖兽的气息。 | J119: 1 | L119: 0 | S119: 0 | V119: 1 | W119: 999999999
B120: 1554 | C120: 母亲的信物 | D120: TRUE | E120: 1551 | F120: 0 | G120: 1 | H120: 母亲留给孩子的信物，寄托着她对孩子的思念。 | J120: 1 | L120: 0 | S120: 0 | V120: 1 | W120: 999999999
B121: 1557 | C121: 石匙·一 | D121: TRUE | E121: 1551 | F121: 0 | G121: 1 | H121: 开启某扇石门的钥匙。 | J121: 1 | L121: 0 | S121: 1 | V121: 1 | W121: 999999999
B122: 1558 | C122: 石匙·二 | D122: TRUE | E122: 1551 | F122: 0 | G122: 1 | H122: 开启某扇石门的钥匙。 | J122: 1 | L122: 0 | S122: 1 | V122: 1 | W122: 999999999
B123: 1559 | C123: 石匙·三 | D123: TRUE | E123: 1551 | F123: 0 | G123: 1 | H123: 开启某扇石门的钥匙。 | J123: 1 | L123: 0 | S123: 1 | V123: 1 | W123: 999999999
B124: 1560 | C124: 石匙·四 | D124: TRUE | E124: 1551 | F124: 0 | G124: 1 | H124: 开启某扇石门的钥匙。 | J124: 1 | L124: 0 | S124: 1 | V124: 1 | W124: 999999999
B125: 1561 | C125: 商人的货物 | D125: TRUE | E125: 1551 | F125: 0 | G125: 1 | H125: 交给材料商人的货物。 | J125: 1 | L125: 0 | S125: 1 | V125: 1 | W125: 999999999
B126: 1562 | C126: 深渊之骨 | D126: TRUE | E126: 1551 | F126: 0 | G126: 1 | H126: 深渊生物的骨头，具有一定的收藏价值。 | J126: 1 | L126: 0 | S126: 1 | T126: 1 | V126: 1 | W126: 999999999
B127: 6001 | C127: 朔方铃 | D127: TRUE | E127: 16010 | F127: 4 | G127: 3 | H127: 刀劳鬼的朔方铃妖魂。 | J127: 6 | L127: 0 | M127: 100001 | Q127: 21001 | R127: 3001 | V127: 1 | W127: 999999999
B128: 6002 | C128: 狱魔角 | D128: TRUE | E128: 16011 | F128: 4 | G128: 3 | H128: 刀劳鬼的狱魔角妖魂。 | J128: 6 | L128: 0 | M128: 100001 | Q128: 21001 | R128: 3001 | V128: 1 | W128: 999999999
B129: 6003 | C129: 荒之息 | D129: TRUE | E129: 16012 | F129: 4 | G129: 3 | H129: 刀劳鬼的荒之息妖魂。 | J129: 6 | L129: 0 | M129: 100001 | Q129: 21001 | R129: 3001 | V129: 1 | W129: 999999999
B130: 6004 | C130: 桃竹笼 | D130: TRUE | E130: 16001 | F130: 4 | G130: 3 | H130: 蒸笼仔的桃竹笼妖魂。 | J130: 6 | L130: 0 | M130: 100001 | Q130: 21001 | R130: 3001 | V130: 1 | W130: 999999999
B131: 6005 | C131: 玄蒲叶 | D131: TRUE | E131: 16002 | F131: 4 | G131: 3 | H131: 蒸笼仔的玄蒲叶妖魂。 | J131: 6 | L131: 0 | M131: 100001 | Q131: 21001 | R131: 3001 | V131: 1 | W131: 999999999
B132: 6006 | C132: 灵隐螭 | D132: TRUE | E132: 16003 | F132: 4 | G132: 3 | H132: 蒸笼仔的灵隐螭妖魂。 | J132: 6 | L132: 0 | M132: 100001 | Q132: 21001 | R132: 3001 | V132: 1 | W132: 999999999
B133: 6007 | C133: 移命杖 | D133: TRUE | E133: 16004 | F133: 4 | G133: 3 | H133: 横公的移命杖妖魂。 | J133: 6 | L133: 0 | M133: 100001 | Q133: 21001 | R133: 3001 | V133: 1 | W133: 999999999
B134: 6008 | C134: 吉钱冠 | D134: TRUE | E134: 16005 | F134: 4 | G134: 3 | H134: 横公的吉钱冠妖魂。 | J134: 6 | L134: 0 | M134: 100001 | Q134: 21001 | R134: 3001 | V134: 1 | W134: 999999999
B135: 6009 | C135: 聚宝坠 | D135: TRUE | E135: 16006 | F135: 4 | G135: 3 | H135: 横公的聚宝坠妖魂。 | J135: 6 | L135: 0 | M135: 100001 | Q135: 21001 | R135: 3001 | V135: 1 | W135: 999999999
B136: 6010 | C136: 玲玉笛 | D136: TRUE | E136: 16007 | F136: 4 | G136: 3 | H136: 拘魂姬的玲玉笛妖魂。 | J136: 6 | L136: 0 | M136: 100001 | Q136: 21001 | R136: 3001 | V136: 1 | W136: 999999999
B137: 6011 | C137: 宿元镜 | D137: TRUE | E137: 16008 | F137: 4 | G137: 3 | H137: 拘魂姬的宿元镜妖魂。 | J137: 6 | L137: 0 | M137: 100001 | Q137: 21001 | R137: 3001 | V137: 1 | W137: 999999999
B138: 6012 | C138: 天宁栓 | D138: TRUE | E138: 16009 | F138: 4 | G138: 3 | H138: 拘魂姬的天宁栓妖魂。 | J138: 6 | L138: 0 | M138: 100001 | Q138: 21001 | R138: 3001 | V138: 1 | W138: 999999999
B139: 6013 | C139: 通灵火 | D139: TRUE | E139: 16021 | F139: 4 | G139: 3 | H139: 火鼠的通灵火妖魂。 | J139: 7 | L139: 0 | M139: 100001 | Q139: 21001 | R139: 3001 | V139: 1 | W139: 999999999
B140: 6014 | C140: 化形绫 | D140: TRUE | E140: 16022 | F140: 4 | G140: 3 | H140: 火鼠的化形绫妖魂。 | J140: 7 | L140: 0 | M140: 100001 | Q140: 21001 | R140: 3001 | V140: 1 | W140: 999999999
B141: 6015 | C141: 缚鼠皮 | D141: TRUE | E141: 16023 | F141: 4 | G141: 3 | H141: 火鼠的缚鼠皮妖魂。 | J141: 7 | L141: 0 | M141: 100001 | Q141: 21001 | R141: 3001 | V141: 1 | W141: 999999999
B142: 6016 | C142: 无忌鬃 | D142: TRUE | E142: 16024 | F142: 4 | G142: 3 | H142: 火鼠的无忌鬃妖魂。 | J142: 7 | L142: 0 | M142: 100001 | Q142: 21001 | R142: 3001 | V142: 1 | W142: 999999999
B143: 6017 | C143: 镔烟锅 | D143: TRUE | E143: 16033 | F143: 4 | G143: 3 | H143: 拦面叟的镔烟锅妖魂。 | J143: 7 | L143: 0 | M143: 100001 | Q143: 21001 | R143: 3001 | V143: 1 | W143: 999999999
B144: 6018 | C144: 天竺笠 | D144: TRUE | E144: 16034 | F144: 4 | G144: 3 | H144: 拦面叟的天竺笠妖魂。 | J144: 7 | L144: 0 | M144: 100001 | Q144: 21001 | R144: 3001 | V144: 1 | W144: 999999999
B145: 6019 | C145: 那迦珠 | D145: TRUE | E145: 16035 | F145: 4 | G145: 3 | H145: 拦面叟的那迦珠妖魂。 | J145: 7 | L145: 0 | M145: 100001 | Q145: 21001 | R145: 3001 | V145: 1 | W145: 999999999
B146: 6020 | C146: 凝云符 | D146: TRUE | E146: 16036 | F146: 4 | G146: 3 | H146: 拦面叟的凝云符妖魂。 | J146: 7 | L146: 0 | M146: 100001 | Q146: 21001 | R146: 3001 | V146: 1 | W146: 999999999
B147: 6021 | C147: 笑面谱 | D147: TRUE | E147: 16017 | F147: 4 | G147: 3 | H147: 孙龙的笑面谱妖魂。 | J147: 7 | L147: 0 | M147: 100001 | Q147: 21001 | R147: 3001 | V147: 1 | W147: 999999999
B148: 6022 | C148: 映心剑 | D148: TRUE | E148: 16018 | F148: 4 | G148: 3 | H148: 孙龙的映心剑妖魂。 | J148: 7 | L148: 0 | M148: 100001 | Q148: 21001 | R148: 3001 | V148: 1 | W148: 999999999
B149: 6023 | C149: 渴魂刀 | D149: TRUE | E149: 16019 | F149: 4 | G149: 3 | H149: 孙龙的渴魂刀妖魂。 | J149: 7 | L149: 0 | M149: 100001 | Q149: 21001 | R149: 3001 | V149: 1 | W149: 999999999
B150: 6024 | C150: 魔烟罗 | D150: TRUE | E150: 16020 | F150: 4 | G150: 3 | H150: 孙龙的魔烟罗妖魂。 | J150: 7 | L150: 0 | M150: 100001 | Q150: 21001 | R150: 3001 | V150: 1 | W150: 999999999
B151: 6025 | C151: 九阴刃 | D151: TRUE | E151: 16025 | F151: 4 | G151: 3 | H151: 陌刀的九阴刃妖魂。 | J151: 7 | L151: 0 | M151: 100001 | Q151: 21001 | R151: 3001 | V151: 1 | W151: 999999999
B152: 6026 | C152: 武藏卷 | D152: TRUE | E152: 16026 | F152: 4 | G152: 3 | H152: 陌刀的武藏卷妖魂。 | J152: 7 | L152: 0 | M152: 100001 | Q152: 21001 | R152: 3001 | V152: 1 | W152: 999999999
B153: 6027 | C153: 战鬼血 | D153: TRUE | E153: 16027 | F153: 4 | G153: 3 | H153: 陌刀的战鬼血妖魂。 | J153: 7 | L153: 0 | M153: 100001 | Q153: 21001 | R153: 3001 | V153: 1 | W153: 999999999
B154: 6028 | C154: 四臂骸 | D154: TRUE | E154: 16028 | F154: 4 | G154: 3 | H154: 陌刀的四臂骸妖魂。 | J154: 7 | L154: 0 | M154: 100001 | Q154: 21001 | R154: 3001 | V154: 1 | W154: 999999999
B155: 6029 | C155: 熠风刀 | D155: TRUE | E155: 16029 | F155: 4 | G155: 3 | H155: 风狸的熠风刀妖魂。 | J155: 7 | L155: 0 | M155: 100001 | Q155: 21001 | R155: 3001 | V155: 1 | W155: 999999999
B156: 6030 | C156: 镇魂酒 | D156: TRUE | E156: 16030 | F156: 4 | G156: 3 | H156: 风狸的镇魂酒妖魂。 | J156: 7 | L156: 0 | M156: 100001 | Q156: 21001 | R156: 3001 | V156: 1 | W156: 999999999
B157: 6031 | C157: 扶桑鼬 | D157: TRUE | E157: 16031 | F157: 4 | G157: 3 | H157: 风狸的扶桑鼬妖魂。 | J157: 7 | L157: 0 | M157: 100001 | Q157: 21001 | R157: 3001 | V157: 1 | W157: 999999999
B158: 6032 | C158: 舞阳纹 | D158: TRUE | E158: 16032 | F158: 4 | G158: 3 | H158: 风狸的舞阳纹妖魂。 | J158: 7 | L158: 0 | M158: 100001 | Q158: 21001 | R158: 3001 | V158: 1 | W158: 999999999
B159: 6033 | C159: 金丝逆鳞 | D159: TRUE | E159: 16013 | F159: 4 | G159: 3 | H159: 天麟的金丝逆鳞妖魂。 | J159: 7 | L159: 0 | M159: 100001 | Q159: 21001 | R159: 3001 | V159: 1 | W159: 999999999
B160: 6034 | C160: 贮雷妖珠 | D160: TRUE | E160: 16014 | F160: 4 | G160: 3 | H160: 天麟的贮雷妖珠妖魂。 | J160: 7 | L160: 0 | M160: 100001 | Q160: 21001 | R160: 3001 | V160: 1 | W160: 999999999
B161: 6035 | C161: 麟龙金角 | D161: TRUE | E161: 16015 | F161: 4 | G161: 3 | H161: 天麟的麟龙金角妖魂。 | J161: 7 | L161: 0 | M161: 100001 | Q161: 21001 | R161: 3001 | V161: 1 | W161: 999999999
B162: 6036 | C162: 聚灵之戒 | D162: TRUE | E162: 16016 | F162: 4 | G162: 3 | H162: 天麟的聚灵之戒妖魂。 | J162: 7 | L162: 0 | M162: 100001 | Q162: 21001 | R162: 3001 | V162: 1 | W162: 999999999
B163: 10001 | C163: 伏羲 | D163: FALSE | E163: 3001 | F163: 1 | J163: 5 | L163: 1 | M163: 56001 | U163: 10001#5 | V163: 1 | W163: 9999999 | Y163: 0|71001#1
B164: 10002 | C164: 洛神 | D164: FALSE | E164: 3002 | F164: 1 | J164: 5 | L164: 1 | M164: 56001 | U164: 10002#5 | V164: 1 | W164: 9999999 | Y164: 0|71002#1
B165: 10003 | C165: 猪八戒 | D165: FALSE | E165: 3003 | F165: 1 | J165: 5 | L165: 1 | M165: 56001 | U165: 10003#5 | V165: 1 | W165: 9999999 | Y165: 0|71003#1
B166: 10004 | C166: 慈航道人 | D166: FALSE | E166: 3004 | F166: 1 | J166: 5 | L166: 1 | M166: 56001 | U166: 10004#5 | V166: 1 | W166: 9999999 | Y166: 0|71004#1
B167: 10005 | C167: 妲己 | D167: FALSE | E167: 3005 | F167: 1 | J167: 5 | L167: 1 | M167: 56001 | U167: 10005#5 | V167: 1 | W167: 9999999 | Y167: 0|71005#1
B168: 10006 | C168: 共工 | D168: FALSE | E168: 3006 | F168: 1 | J168: 5 | L168: 1 | M168: 56001 | U168: 10006#5 | V168: 1 | W168: 9999999 | Y168: 0|71006#1
B169: 10007 | C169: 唐僧 | D169: FALSE | E169: 3007 | F169: 1 | J169: 5 | L169: 1 | M169: 56001 | U169: 10007#5 | V169: 1 | W169: 9999999 | Y169: 0|71007#1
B170: 10008 | C170: 精卫 | D170: FALSE | E170: 3008 | F170: 1 | J170: 5 | L170: 1 | M170: 56001 | U170: 10008#5 | V170: 1 | W170: 9999999 | Y170: 0|71008#1
B171: 10009 | C171: 龙吉公主 | D171: FALSE | E171: 3009 | F171: 1 | J171: 5 | L171: 1 | M171: 56001 | U171: 10009#5 | V171: 1 | W171: 9999999 | Y171: 0|71009#1
B172: 10010 | C172: 孔雀明王 | D172: FALSE | E172: 3010 | F172: 1 | J172: 5 | L172: 1 | M172: 56001 | U172: 10010#5 | V172: 1 | W172: 9999999 | Y172: 0|71010#1
B173: 10011 | C173: 雷震子 | D173: FALSE | E173: 3011 | F173: 1 | J173: 5 | L173: 1 | M173: 56001 | U173: 10011#5 | V173: 1 | W173: 9999999 | Y173: 0|71011#1
B174: 10012 | C174: 降龙罗汉 | D174: FALSE | E174: 3012 | F174: 1 | J174: 5 | L174: 1 | M174: 56001 | U174: 10012#5 | V174: 1 | W174: 9999999 | Y174: 0|71012#1
B175: 10013 | C175: 吕洞宾 | D175: FALSE | E175: 3013 | F175: 1 | J175: 5 | L175: 1 | M175: 56001 | U175: 10013#5 | V175: 1 | W175: 9999999 | Y175: 0|71013#1
B176: 10014 | C176: 哪吒 | D176: FALSE | E176: 3014 | F176: 1 | J176: 5 | L176: 1 | M176: 56001 | U176: 10014#5 | V176: 1 | W176: 9999999 | Y176: 0|71014#1
B177: 10015 | C177: 伏虎罗汉 | D177: FALSE | E177: 3015 | F177: 1 | J177: 5 | L177: 1 | M177: 56001 | U177: 10015#5 | V177: 1 | W177: 9999999 | Y177: 0|71015#1
B178: 10016 | C178: 蚩尤 | D178: FALSE | E178: 3016 | F178: 1 | J178: 5 | L178: 1 | M178: 56001 | U178: 10016#5 | V178: 1 | W178: 9999999 | Y178: 0|71016#1
B179: 10017 | C179: 嫦娥 | D179: FALSE | E179: 3017 | F179: 1 | J179: 5 | L179: 1 | M179: 56001 | U179: 10017#5 | V179: 1 | W179: 9999999 | Y179: 0|71017#1
B180: 10018 | C180: 九命猫 | D180: FALSE | E180: 3018 | F180: 1 | J180: 5 | L180: 1 | M180: 56001 | U180: 10018#5 | V180: 1 | W180: 9999999 | Y180: 0|71018#1
B181: 10019 | C181: 巨灵神 | D181: FALSE | E181: 3019 | F181: 1 | J181: 5 | L181: 1 | M181: 56001 | U181: 10019#5 | V181: 1 | W181: 9999999 | Y181: 0|71019#1
B182: 10020 | C182: 姑获鸟 | D182: FALSE | E182: 3020 | F182: 1 | J182: 5 | L182: 1 | M182: 56001 | U182: 10020#5 | V182: 1 | W182: 9999999 | Y182: 0|71020#1
B183: 10021 | C183: 东陵圣母 | D183: FALSE | E183: 3021 | F183: 1 | J183: 5 | L183: 1 | M183: 56001 | U183: 10021#5 | V183: 1 | W183: 9999999 | Y183: 0|71021#1
B184: 10022 | C184: 达摩 | D184: FALSE | E184: 3022 | F184: 1 | J184: 5 | L184: 1 | M184: 56001 | U184: 10022#5 | V184: 1 | W184: 9999999 | Y184: 0|71022#1
B185: 10023 | C185: 孙悟空 | D185: FALSE | E185: 3023 | F185: 1 | J185: 5 | L185: 1 | M185: 56001 | U185: 10023#5 | V185: 1 | W185: 9999999 | Y185: 0|71023#1
B186: 10024 | C186: 姜子牙 | D186: FALSE | E186: 3024 | F186: 1 | J186: 5 | L186: 1 | M186: 56001 | U186: 10024#5 | V186: 1 | W186: 9999999 | Y186: 0|71024#1
B187: 10025 | C187: 道德天尊 | D187: FALSE | E187: 3025 | F187: 1 | J187: 5 | L187: 1 | M187: 56001 | U187: 10025#5 | V187: 1 | W187: 9999999 | Y187: 0|71025#1
B188: 10026 | C188: 东华帝君 | D188: FALSE | E188: 3026 | F188: 1 | J188: 5 | L188: 1 | M188: 56001 | U188: 10026#5 | V188: 1 | W188: 9999999 | Y188: 0|71026#1
B189: 10027 | C189: 孟婆 | D189: FALSE | E189: 3027 | F189: 1 | J189: 5 | L189: 1 | M189: 56001 | U189: 10027#5 | V189: 1 | W189: 9999999 | Y189: 0|71027#1
B190: 10028 | C190: 石矶娘娘 | D190: FALSE | E190: 3028 | F190: 1 | J190: 5 | L190: 1 | M190: 56001 | U190: 10028#5 | V190: 1 | W190: 9999999 | Y190: 0|71028#1
B191: 10029 | C191: 月光菩萨 | D191: FALSE | E191: 3029 | F191: 1 | J191: 5 | L191: 1 | M191: 56001 | U191: 10029#5 | V191: 1 | W191: 9999999 | Y191: 0|71029#1
B192: 10030 | C192: 梵天 | D192: FALSE | E192: 3030 | F192: 1 | J192: 5 | L192: 1 | M192: 56001 | U192: 10030#5 | V192: 1 | W192: 9999999 | Y192: 0|71030#1
B193: 10031 | C193: 红孩儿 | D193: FALSE | E193: 3031 | F193: 1 | J193: 5 | L193: 1 | M193: 56001 | U193: 10031#5 | V193: 1 | W193: 9999999 | Y193: 0|71031#1
B194: 10032 | C194: 吴刚 | D194: FALSE | E194: 3032 | F194: 1 | J194: 5 | L194: 1 | M194: 56001 | U194: 10032#5 | V194: 1 | W194: 9999999 | Y194: 0|71032#1
B195: 10033 | C195: 净光天女 | D195: FALSE | E195: 3033 | F195: 1 | J195: 5 | L195: 1 | M195: 56001 | U195: 10033#5 | V195: 1 | W195: 9999999 | Y195: 0|71033#1
B196: 10034 | C196: 帝释天 | D196: FALSE | E196: 3034 | F196: 1 | J196: 5 | L196: 1 | M196: 56001 | U196: 10034#5 | V196: 1 | W196: 9999999 | Y196: 0|71034#1
B197: 10035 | C197: 妈祖 | D197: FALSE | E197: 3035 | F197: 1 | J197: 5 | L197: 1 | M197: 56001 | U197: 10035#5 | V197: 1 | W197: 9999999 | Y197: 0|71035#1
B198: 10036 | C198: 赵公明 | D198: FALSE | E198: 3036 | F198: 1 | J198: 5 | L198: 1 | M198: 56001 | U198: 10036#5 | V198: 1 | W198: 9999999 | Y198: 0|71036#1
B199: 10037 | C199: 罗刹 | D199: FALSE | E199: 3037 | F199: 1 | J199: 5 | L199: 1 | M199: 56001 | U199: 10037#5 | V199: 1 | W199: 9999999 | Y199: 0|71037#1
B200: 10038 | C200: 夜叉 | D200: FALSE | E200: 3038 | F200: 1 | J200: 5 | L200: 1 | M200: 56001 | U200: 10038#5 | V200: 1 | W200: 9999999 | Y200: 0|71038#1
... 606 more rows

Sheet Sheet1
I9: 关卡章节 | J9: 掉落品阶 | P9: 普通关卡掉落 | W9: 显示
B10: 1 | C10: 26002 | D10: =C10+5 -> 26007 | E10: 26052 | F10: =_xlfn.TEXTJOIN("#",TRUE,C10:E10) -> 26002#26007#26052 | H10: 26002 | I10: 1 | J10: 1 | L10: 26002 | O10: =_xlfn.TEXTJOIN("#",TRUE,L10:N10) -> 26002 | P10: 11 | Q10: 260101 | R10: 260201 | S10: 260301 | W10: 70101 | X10: 1 | Y10: =W10&"#"&X10 -> 70101#1 | Z10: =Y10&"|"&RIGHT([2]LevelDifficultyConfig!L8,11) -> 70101#1|3001#401001
B11: 1 | C11: =C10+1 -> 26003 | D11: 26008 | E11: =E10+1 -> 26053 | F11: =_xlfn.TEXTJOIN("#",TRUE,C11:E11) -> 26003#26008#26053 | H11: =H10+5 -> 26007 | I11: 2 | J11: 2 | L11: 26007 | O11: =_xlfn.TEXTJOIN("#",TRUE,L11:N11) -> 26007 | P11: 12 | Q11: 260401 | R11: 260501 | S11: 260601 | W11: =W10+100 -> 70201 | X11: =X10 -> 1 | Y11: =W11&"#"&X11 -> 70201#1 | Z11: =Y11&"|"&RIGHT([2]LevelDifficultyConfig!L9,11) -> 70201#1|3002#401002
B12: 1 | C12: 26004 | D12: 26009 | E12: 26054 | F12: 26004#26009#26054 | H12: =H11+5 -> 26012 | I12: 3 | J12: 3 | L12: 26012 | O12: 26012 | P12: =P11+1 -> 13 | Q12: =Q11+300 -> 260701 | R12: 260801 | S12: 260901 | W12: =W11+100 -> 70301 | X12: =X11 -> 1 | Y12: 70301#1 | Z12: =Y12&"|"&RIGHT([2]LevelDifficultyConfig!L10,11) -> 70301#1|3003#401003
B13: 1 | C13: 26005 | D13: 26010 | E13: 26055 | F13: 26005#26010#26055 | H13: 26017 | I13: 4 | J13: 4 | L13: =H13 -> 26017 | O13: 26017 | P13: =P12+1 -> 14 | Q13: 261001 | R13: 261101 | S13: 261201 | W13: =W12+100 -> 70401 | X13: 1 | Y13: 70401#1 | Z13: =Y13&"|"&RIGHT([2]LevelDifficultyConfig!L11,11) -> 70401#1|3004#401004
B14: 1 | C14: 26006 | D14: 26011 | E14: 26056 | F14: 26006#26011#26056 | H14: 26022 | I14: 5 | J14: 5 | L14: =H14 -> 26022 | O14: 26022 | P14: =P13+1 -> 15 | Q14: 261301 | R14: 261401 | S14: 261501 | W14: =W13+100 -> 70501 | X14: 1 | Y14: 70501#1 | Z14: =Y14&"|"&RIGHT([2]LevelDifficultyConfig!L12,11) -> 70501#1|3005#401005
B15: =B10+1 -> 2 | C15: =C10+10 -> 26012 | D15: =D10+10 -> 26017 | E15: 26057 | F15: 26012#26017#26057 | H15: 26027 | I15: 6 | J15: 6 | L15: =H15 -> 26027 | M15: 26032 | O15: 26027#26032 | W15: =W10+1 -> 70102 | X15: 1 | Y15: 70102#1 | Z15: =Y15&"|"&RIGHT([2]LevelDifficultyConfig!L13,11) -> 70102#1|3006#401006
B16: 2 | C16: 26013 | D16: 26018 | E16: 26058 | F16: 26013#26018#26058 | H16: 26032 | I16: 7 | J16: 6 | L16: 26037 | M16: 26042 | O16: 26037#26042 | W16: =W11+1 -> 70202 | X16: 1 | Y16: 70202#1 | Z16: =Y16&"|"&RIGHT([2]LevelDifficultyConfig!L14,11) -> 70202#1|3007#401007
B17: 2 | C17: 26014 | D17: 26019 | E17: 26059 | F17: 26014#26019#26059 | H17: 26037 | I17: 8 | J17: 7 | K17: 1 | L17: 26047 | M17: 26052 | O17: 26047#26052 | W17: 70302 | X17: 1 | Y17: 70302#1 | Z17: =Y17&"|"&RIGHT([2]LevelDifficultyConfig!L15,11) -> 70302#1|3008#401008
B18: 2 | C18: 26015 | D18: 26020 | E18: 26060 | F18: 26015#26020#26060 | H18: 26042 | I18: 9 | J18: 7 | K18: 2 | L18: 26057 | M18: 26062 | O18: 26057#26062 | W18: 70402 | X18: 1 | Y18: 70402#1 | Z18: =Y18&"|"&RIGHT([2]LevelDifficultyConfig!L16,11) -> 70402#1|3009#401009
B19: 2 | C19: 26016 | D19: 26021 | E19: 26061 | F19: 26016#26021#26061 | H19: 26047 | I19: 10 | J19: 8 | K19: 3 | L19: 26067 | M19: 26072 | O19: 26067#26072 | W19: 70502 | X19: 1 | Y19: 70502#1 | Z19: =Y19&"|"&RIGHT([2]LevelDifficultyConfig!L17,11) -> 70502#1|3010#401010
B20: 3 | C20: 26022 | D20: 26027 | E20: =E19+1 -> 26062 | F20: 26022#26027#26062 | H20: 26052 | I20: 11 | J20: 8 | K20: 4 | W20: 70103 | X20: 1 | Y20: 70103#1 | Z20: =Y20&"|"&RIGHT([2]LevelDifficultyConfig!L18,11) -> 70103#1|3011#401011
B21: 3 | C21: 26023 | D21: 26028 | E21: 26063 | F21: 26023#26028#26063 | H21: 26057 | I21: 12 | J21: 9 | K21: 5 | W21: 70203 | X21: 1 | Y21: 70203#1 | Z21: =Y21&"|"&RIGHT([2]LevelDifficultyConfig!L19,11) -> 70203#1|3012#401012
B22: 3 | C22: 26024 | D22: 26029 | E22: 26064 | F22: 26024#26029#26064 | H22: 26062 | I22: 13 | J22: 9 | K22: 6 | W22: 70303 | X22: 1 | Y22: 70303#1 | Z22: =Y22&"|"&RIGHT([2]LevelDifficultyConfig!L20,11) -> 70303#1|3013#401013
B23: 3 | C23: 26025 | D23: 26030 | E23: 26065 | F23: 26025#26030#26065 | H23: 26067 | I23: 14 | J23: 10 | K23: 3 | W23: 70403 | X23: 1 | Y23: 70403#1 | Z23: =Y23&"|"&RIGHT([2]LevelDifficultyConfig!L21,11) -> 70403#1|3014#401014
B24: 3 | C24: 26026 | D24: 26031 | E24: 26066 | F24: 26026#26031#26066 | H24: 26072 | I24: 15 | J24: 10 | K24: 4 | W24: 70503 | X24: 1 | Y24: 70503#1 | Z24: =Y24&"|"&RIGHT([2]LevelDifficultyConfig!L22,11) -> 70503#1|3015#401015
B25: =B20+1 -> 4 | C25: 26032 | D25: 26037 | E25: 26067 | F25: 26032#26037#26067 | Q25: =Q10 -> 260101 | R25: =R10 -> 260201 | S25: =S10 -> 260301 | T25: =_xlfn.TEXTJOIN("#",TRUE,Q25:S25) -> 260101#260201#260301 | W25: 70104 | X25: 1 | Y25: 70104#1 | Z25: =Y25&"|"&RIGHT([2]LevelDifficultyConfig!L23,11) -> 70104#1|3016#401016
B26: 4 | C26: 26033 | D26: 26038 | E26: 26068 | F26: 26033#26038#26068 | Q26: =Q25+1 -> 260102 | R26: 260202 | S26: 260302 | T26: =_xlfn.TEXTJOIN("#",TRUE,Q26:S26) -> 260102#260202#260302 | W26: 70204 | X26: 1 | Y26: 70204#1 | Z26: =Y26&"|"&RIGHT([2]LevelDifficultyConfig!L24,11) -> 70204#1|3017#401017
B27: 4 | C27: =C22+10 -> 26034 | D27: =D22+10 -> 26039 | E27: 26069 | F27: 26034#26039#26069 | Q27: 260103 | R27: 260203 | S27: 260303 | T27: 260103#260203#260303 | W27: 70304 | X27: 1 | Y27: 70304#1 | Z27: =Y27&"|"&RIGHT([2]LevelDifficultyConfig!L25,11) -> 70304#1|3018#401018
B28: 4 | C28: 26035 | D28: 26040 | E28: 26070 | F28: 26035#26040#26070 | N28: 掉落 | Q28: 260104 | R28: 260204 | S28: 260304 | T28: 260104#260204#260304 | W28: 70404 | X28: 1 | Y28: 70404#1 | Z28: =Y28&"|"&RIGHT([2]LevelDifficultyConfig!L26,11) -> 70404#1|3019#401019
B29: 4 | C29: 26036 | D29: 26041 | E29: 26071 | F29: 26036#26041#26071 | K29: =L10 -> 26002 | N29: =_xlfn.TEXTJOIN("#",TRUE,K29:M29) -> 26002 | Q29: 260105 | R29: 260205 | S29: 260305 | T29: 260105#260205#260305 | W29: 70504 | X29: 1 | Y29: 70504#1 | Z29: =Y29&"|"&RIGHT([2]LevelDifficultyConfig!L27,11) -> 70504#1|3020#401020
B30: 5 | C30: 26042 | D30: 26047 | E30: 26072 | F30: 26042#26047#26072 | K30: =K29+1 -> 26003 | N30: =_xlfn.TEXTJOIN("#",TRUE,K30:M30) -> 26003 | Q30: =Q11 -> 260401 | R30: =R11 -> 260501 | S30: =S11 -> 260601 | T30: 260401#260501#260601 | W30: 70105 | X30: 1 | Y30: 70105#1 | Z30: =Y30&"|"&RIGHT([2]LevelDifficultyConfig!L28,11) -> 70105#1|3021#401021
B31: 5 | C31: 26043 | D31: 26048 | E31: 26073 | F31: 26043#26048#26073 | K31: 26004 | N31: 26004 | Q31: =Q30+1 -> 260402 | R31: 260502 | S31: 260602 | T31: 260402#260502#260602 | W31: 70205 | X31: 1 | Y31: 70205#1 | Z31: =Y31&"|"&RIGHT([2]LevelDifficultyConfig!L29,11) -> 70205#1|3022#401022
B32: 5 | C32: 26044 | D32: 26049 | E32: 26074 | F32: 26044#26049#26074 | K32: 26005 | N32: 26005 | Q32: 260403 | R32: 260503 | S32: 260603 | T32: 260403#260503#260603 | W32: 70305 | X32: 1 | Y32: 70305#1 | Z32: =Y32&"|"&RIGHT([2]LevelDifficultyConfig!L30,11) -> 70305#1|3023#401023
B33: 5 | C33: 26045 | D33: 26050 | E33: 26075 | F33: 26045#26050#26075 | K33: 26006 | N33: 26006 | Q33: 260404 | R33: 260504 | S33: 260604 | T33: 260404#260504#260604 | W33: 70405 | X33: 1 | Y33: 70405#1 | Z33: =Y33&"|"&RIGHT([2]LevelDifficultyConfig!L31,11) -> 70405#1|3024#401024
B34: 5 | C34: 26046 | D34: 26051 | E34: 26076 | F34: 26046#26051#26076 | K34: =L11 -> 26007 | N34: 26007 | Q34: 260405 | R34: 260505 | S34: 260605 | T34: 260405#260505#260605 | W34: 70505 | X34: 1 | Y34: 70505#1 | Z34: =Y34&"|"&RIGHT([2]LevelDifficultyConfig!L32,11) -> 70505#1|3025#401025
B35: 6 | C35: 26052 | F35: 26052 | K35: =K34+1 -> 26008 | N35: 26008 | Q35: =Q12 -> 260701 | R35: =R12 -> 260801 | S35: =S12 -> 260901 | T35: 260701#260801#260901 | W35: 70106 | X35: 1 | Y35: 70106#1 | Z35: =Y35&"|"&RIGHT([2]LevelDifficultyConfig!L33,11) -> 70106#1|3026#401026
B36: 6 | C36: 26053 | F36: 26053 | K36: 26009 | N36: 26009 | Q36: =Q35+1 -> 260702 | R36: 260802 | S36: 260902 | T36: 260702#260802#260902 | W36: 70206 | X36: 1 | Y36: 70206#1 | Z36: =Y36&"|"&RIGHT([2]LevelDifficultyConfig!L34,11) -> 70206#1|3027#401027
B37: 6 | C37: 26054 | F37: 26054 | K37: 26010 | N37: 26010 | Q37: 260703 | R37: 260803 | S37: 260903 | T37: 260703#260803#260903 | W37: 70306 | X37: 1 | Y37: 70306#1 | Z37: =Y37&"|"&RIGHT([2]LevelDifficultyConfig!L35,11) -> 70306#1|3028#401028
B38: 6 | C38: 26055 | F38: 26055 | K38: 26011 | N38: 26011 | Q38: 260704 | R38: 260804 | S38: 260904 | T38: 260704#260804#260904 | W38: 70406 | X38: 1 | Y38: 70406#1 | Z38: =Y38&"|"&RIGHT([2]LevelDifficultyConfig!L36,11) -> 70406#1|3029#401029
B39: 6 | C39: 26056 | F39: 26056 | K39: =L12 -> 26012 | N39: 26012 | Q39: 260705 | R39: 260805 | S39: 260905 | T39: 260705#260805#260905 | W39: 70506 | X39: 1 | Y39: 70506#1 | Z39: =Y39&"|"&RIGHT([2]LevelDifficultyConfig!L37,11) -> 70506#1|3030#401030
B40: 7 | C40: =C39+1 -> 26057 | F40: 26057 | K40: =K39+1 -> 26013 | N40: 26013 | Q40: =Q13 -> 261001 | R40: =R13 -> 261101 | S40: =S13 -> 261201 | T40: 261001#261101#261201 | W40: =W35 -> 70106 | X40: 1 | Y40: 70106#1 | Z40: =Y40&"|"&RIGHT([2]LevelDifficultyConfig!L38,11) -> 70106#1|3031#401031
B41: 7 | C41: 26058 | F41: 26058 | K41: =K40+1 -> 26014 | N41: 26014 | Q41: =Q40+1 -> 261002 | R41: 261102 | S41: 261202 | T41: 261002#261102#261202 | W41: =W36 -> 70206 | X41: 1 | Y41: 70206#1 | Z41: =Y41&"|"&RIGHT([2]LevelDifficultyConfig!L39,11) -> 70206#1|3032#401032
B42: 7 | C42: 26059 | F42: 26059 | K42: =K41+1 -> 26015 | N42: 26015 | Q42: 261003 | R42: 261103 | S42: 261203 | T42: 261003#261103#261203 | W42: =W37 -> 70306 | X42: 1 | Y42: 70306#1 | Z42: =Y42&"|"&RIGHT([2]LevelDifficultyConfig!L40,11) -> 70306#1|3033#401033
B43: 7 | C43: 26060 | F43: =_xlfn.TEXTJOIN("#",TRUE,C43:E43) -> 26060 | K43: =K42+1 -> 26016 | N43: 26016 | Q43: 261004 | R43: 261104 | S43: 261204 | T43: 261004#261104#261204 | W43: =W38 -> 70406 | X43: 1 | Y43: =W43&"#"&X43 -> 70406#1 | Z43: =Y43&"|"&RIGHT([2]LevelDifficultyConfig!L41,11) -> 70406#1|3034#401034
B44: 7 | C44: 26061 | F44: 26061 | K44: =L13 -> 26017 | N44: 26017 | Q44: 261005 | R44: 261105 | S44: 261205 | T44: 261005#261105#261205 | W44: =W39 -> 70506 | X44: =X43 -> 1 | Y44: 70506#1 | Z44: =Y44&"|"&RIGHT([2]LevelDifficultyConfig!L42,11) -> 70506#1|3035#401035
B45: 8 | C45: 26062 | F45: 26062 | K45: =K44+1 -> 26018 | N45: 26018 | Q45: =Q14 -> 261301 | R45: =R14 -> 261401 | S45: =S14 -> 261501 | T45: 261301#261401#261501 | W45: 70107 | X45: 1 | Y45: 70107#1 | Z45: =Y45&"|"&RIGHT([2]LevelDifficultyConfig!L43,11) -> 70107#1|3036#401036
B46: =B41+1 -> 8 | C46: =C45+1 -> 26063 | F46: 26063 | K46: =K45+1 -> 26019 | N46: 26019 | Q46: =Q45+1 -> 261302 | R46: 261402 | S46: 261502 | T46: 261302#261402#261502 | W46: 70207 | X46: 1 | Y46: 70207#1 | Z46: =Y46&"|"&RIGHT([2]LevelDifficultyConfig!L44,11) -> 70207#1|3037#401037
B47: 8 | C47: 26064 | F47: 26064 | K47: =K46+1 -> 26020 | N47: 26020 | Q47: 261303 | R47: 261403 | S47: 261503 | T47: 261303#261403#261503 | W47: 70307 | X47: 1 | Y47: 70307#1 | Z47: =Y47&"|"&RIGHT([2]LevelDifficultyConfig!L45,11) -> 70307#1|3038#401038
B48: 8 | C48: 26065 | F48: 26065 | K48: =K47+1 -> 26021 | N48: 26021 | Q48: 261304 | R48: 261404 | S48: 261504 | T48: 261304#261404#261504 | W48: =W43+1 -> 70407 | X48: 1 | Y48: 70407#1 | Z48: =Y48&"|"&RIGHT([2]LevelDifficultyConfig!L46,11) -> 70407#1|3039#401039
B49: 8 | C49: 26066 | F49: 26066 | K49: =L14 -> 26022 | N49: 26022 | Q49: 261305 | R49: 261405 | S49: 261505 | T49: 261305#261405#261505 | W49: 70507 | X49: 1 | Y49: 70507#1 | Z49: =Y49&"|"&RIGHT([2]LevelDifficultyConfig!L47,11) -> 70507#1|3040#401040
B50: 9 | C50: 26067 | F50: 26067 | K50: =K49+1 -> 26023 | N50: 26023 | W50: =W45 -> 70107 | X50: 1 | Y50: 70107#1 | Z50: =Y50&"|"&RIGHT([2]LevelDifficultyConfig!L48,11) -> 70107#1|3041#401041
B51: 9 | C51: 26068 | F51: 26068 | K51: 26024 | N51: 26024 | W51: =W46 -> 70207 | X51: 1 | Y51: 70207#1 | Z51: =Y51&"|"&RIGHT([2]LevelDifficultyConfig!L49,11) -> 70207#1|3042#401042
B52: 9 | C52: 26069 | F52: 26069 | K52: 26025 | N52: 26025 | W52: =W47 -> 70307 | X52: 1 | Y52: 70307#1 | Z52: =Y52&"|"&RIGHT([2]LevelDifficultyConfig!L50,11) -> 70307#1|3043#401043
B53: 9 | C53: 26070 | F53: 26070 | K53: 26026 | N53: 26026 | W53: =W48 -> 70407 | X53: 1 | Y53: 70407#1 | Z53: =Y53&"|"&RIGHT([2]LevelDifficultyConfig!L51,11) -> 70407#1|3044#401044
B54: 9 | C54: 26071 | F54: 26071 | K54: =L15 -> 26027 | L54: =M15 -> 26032 | N54: 26027#26032 | W54: =W49 -> 70507 | X54: 1 | Y54: 70507#1 | Z54: =Y54&"|"&RIGHT([2]LevelDifficultyConfig!L52,11) -> 70507#1|3045#401045
B55: 10 | C55: 26072 | F55: 26072 | K55: =K54+1 -> 26028 | L55: 26033 | N55: 26028#26033 | W55: 70108 | X55: 1 | Y55: 70108#1 | Z55: =Y55&"|"&RIGHT([2]LevelDifficultyConfig!L53,11) -> 70108#1|3046#401046
B56: 10 | C56: 26073 | F56: 26073 | K56: 26029 | L56: 26034 | N56: 26029#26034 | W56: 70208 | X56: 1 | Y56: 70208#1 | Z56: =Y56&"|"&RIGHT([2]LevelDifficultyConfig!L54,11) -> 70208#1|3047#401047
B57: 10 | C57: 26074 | F57: 26074 | K57: 26030 | L57: 26035 | N57: 26030#26035 | Q57: 18001 | R57: 18017 | S57: 18032 | T57: 18047 | W57: 70308 | X57: 1 | Y57: 70308#1 | Z57: =Y57&"|"&RIGHT([2]LevelDifficultyConfig!L55,11) -> 70308#1|3048#401048
B58: 10 | C58: 26075 | F58: 26075 | K58: 26031 | L58: 26036 | N58: 26031#26036 | Q58: 18002 | R58: 18018 | S58: 18033 | T58: 18048 | W58: 70408 | X58: 1 | Y58: 70408#1 | Z58: =Y58&"|"&RIGHT([2]LevelDifficultyConfig!L56,11) -> 70408#1|3049#401049
B59: 10 | C59: 26076 | F59: 26076 | K59: =L16 -> 26037 | L59: =M16 -> 26042 | N59: 26037#26042 | Q59: 18003 | R59: 18019 | S59: 18034 | T59: 18049 | W59: 70508 | X59: 1 | Y59: 70508#1 | Z59: =Y59&"|"&RIGHT([2]LevelDifficultyConfig!L57,11) -> 70508#1|3050#401050
K60: =K59+1 -> 26038 | L60: 26043 | N60: 26038#26043 | Q60: 18004 | R60: 18020 | S60: 18035 | T60: 18050 | W60: =W55 -> 70108 | X60: 1 | Y60: 70108#1 | Z60: =Y60&"|"&RIGHT([2]LevelDifficultyConfig!L58,11) -> 70108#1|3051#401051
K61: 26039 | L61: 26044 | N61: 26039#26044 | Q61: 18005 | R61: 18021 | S61: 18036 | T61: 18051 | W61: =W56 -> 70208 | X61: 1 | Y61: 70208#1 | Z61: =Y61&"|"&RIGHT([2]LevelDifficultyConfig!L59,11) -> 70208#1|3052#401052
K62: 26040 | L62: 26045 | N62: =_xlfn.TEXTJOIN("#",TRUE,K62:M62) -> 26040#26045 | Q62: 18006 | R62: 18022 | S62: 18037 | T62: 18052 | W62: =W57 -> 70308 | X62: 1 | Y62: 70308#1 | Z62: =Y62&"|"&RIGHT([2]LevelDifficultyConfig!L60,11) -> 70308#1|3053#401053
K63: 26041 | L63: 26046 | N63: 26041#26046 | Q63: 18007 | R63: 18023 | S63: 18038 | T63: 18053 | W63: =W58 -> 70408 | X63: 1 | Y63: 70408#1 | Z63: =Y63&"|"&RIGHT([2]LevelDifficultyConfig!L61,11) -> 70408#1|3054#401054
K64: =L17 -> 26047 | L64: =M17 -> 26052 | N64: 26047#26052 | Q64: 18008 | R64: 18024 | S64: 18039 | T64: 18054 | W64: =W59 -> 70508 | X64: 1 | Y64: 70508#1 | Z64: =Y64&"|"&RIGHT([2]LevelDifficultyConfig!L62,11) -> 70508#1|3055#401055
K65: =K64+1 -> 26048 | L65: 26053 | N65: 26048#26053 | Q65: 18009 | R65: 18025 | S65: 18040 | T65: 18055 | W65: 70109 | X65: 1 | Y65: 70109#1 | Z65: =Y65&"|"&RIGHT([2]LevelDifficultyConfig!L63,11) -> 70109#1|3056#401056
K66: 26049 | L66: 26054 | N66: 26049#26054 | Q66: 18010 | R66: 18026 | S66: 18041 | T66: 18056 | W66: 70209 | X66: 1 | Y66: 70209#1 | Z66: =Y66&"|"&RIGHT([2]LevelDifficultyConfig!L64,11) -> 70209#1|3057#401057
K67: 26050 | L67: 26055 | N67: 26050#26055 | Q67: 18011 | R67: 18027 | S67: 18042 | T67: 18057 | W67: 70309 | X67: 1 | Y67: 70309#1 | Z67: =Y67&"|"&RIGHT([2]LevelDifficultyConfig!L65,11) -> 70309#1|3058#401058
K68: 26051 | L68: 26056 | N68: 26051#26056 | Q68: 18012 | R68: 18028 | S68: 18043 | T68: 18058 | W68: 70409 | X68: 1 | Y68: 70409#1 | Z68: =Y68&"|"&RIGHT([2]LevelDifficultyConfig!L66,11) -> 70409#1|3059#401059
K69: =L18 -> 26057 | L69: =M18 -> 26062 | N69: 26057#26062 | Q69: 18013 | R69: 18029 | S69: 18044 | T69: 18059 | W69: 70509 | X69: 1 | Y69: 70509#1 | Z69: =Y69&"|"&RIGHT([2]LevelDifficultyConfig!L67,11) -> 70509#1|3060#401060
K70: =K69+1 -> 26058 | L70: 26063 | N70: 26058#26063 | Q70: 18014 | R70: 18030 | S70: 18045 | T70: 18060 | W70: =W65 -> 70109 | X70: 1 | Y70: 70109#1 | Z70: =Y70&"|"&RIGHT([2]LevelDifficultyConfig!L68,11) -> 70109#1|3061#401061
K71: 26059 | L71: 26064 | N71: 26059#26064 | Q71: 18015 | R71: 18031 | S71: 18046 | T71: 18061 | W71: =W66 -> 70209 | X71: 1 | Y71: 70209#1 | Z71: =Y71&"|"&RIGHT([2]LevelDifficultyConfig!L69,11) -> 70209#1|3062#401062
K72: 26060 | L72: 26065 | N72: 26060#26065 | W72: =W67 -> 70309 | X72: 1 | Y72: 70309#1 | Z72: =Y72&"|"&RIGHT([2]LevelDifficultyConfig!L70,11) -> 70309#1|3063#401063
K73: 26061 | L73: 26066 | N73: 26061#26066 | W73: =W68 -> 70409 | X73: 1 | Y73: 70409#1 | Z73: =Y73&"|"&RIGHT([2]LevelDifficultyConfig!L71,11) -> 70409#1|3064#401064
K74: =L19 -> 26067 | L74: =M19 -> 26072 | N74: 26067#26072 | W74: =W69 -> 70509 | X74: 1 | Y74: 70509#1 | Z74: =Y74&"|"&RIGHT([2]LevelDifficultyConfig!L72,11) -> 70509#1|3065#401065
K75: =K74+1 -> 26068 | L75: 26073 | N75: 26068#26073 | W75: 70110 | X75: 1 | Y75: 70110#1 | Z75: =Y75&"|"&RIGHT([2]LevelDifficultyConfig!L73,11) -> 70110#1|3066#401066
K76: 26069 | L76: 26074 | N76: 26069#26074 | W76: 70210 | X76: 1 | Y76: 70210#1 | Z76: =Y76&"|"&RIGHT([2]LevelDifficultyConfig!L74,11) -> 70210#1|3067#401067
K77: 26070 | L77: 26075 | N77: 26070#26075 | W77: 70310 | X77: 1 | Y77: 70310#1 | Z77: =Y77&"|"&RIGHT([2]LevelDifficultyConfig!L75,11) -> 70310#1|3068#401068
K78: 26071 | L78: 26076 | N78: 26071#26076 | W78: 70410 | X78: 1 | Y78: 70410#1 | Z78: =Y78&"|"&RIGHT([2]LevelDifficultyConfig!L76,11) -> 70410#1|3069#401069
W79: 70510 | X79: 1 | Y79: 70510#1 | Z79: =Y79&"|"&RIGHT([2]LevelDifficultyConfig!L77,11) -> 70510#1|3070#401070
W80: =W75 -> 70110 | X80: 1 | Y80: 70110#1 | Z80: =Y80&"|"&RIGHT([2]LevelDifficultyConfig!L78,11) -> 70110#1|3071#401071
W81: =W76 -> 70210 | X81: 1 | Y81: 70210#1 | Z81: =Y81&"|"&RIGHT([2]LevelDifficultyConfig!L79,11) -> 70210#1|3072#401072
W82: =W77 -> 70310 | X82: 1 | Y82: 70310#1 | Z82: =Y82&"|"&RIGHT([2]LevelDifficultyConfig!L80,11) -> 70310#1|3073#401073
W83: =W78 -> 70410 | X83: 1 | Y83: 70410#1 | Z83: =Y83&"|"&RIGHT([2]LevelDifficultyConfig!L81,11) -> 70410#1|3074#401074
W84: =W79 -> 70510 | X84: 1 | Y84: 70510#1 | Z84: =Y84&"|"&RIGHT([2]LevelDifficultyConfig!L82,11) -> 70510#1|3075#401075

Sheet Sheet2
J1: ItemBaseType | L1: ItemBaseType
E2: 10001 | F2: 夏侯鸿天 | J2: int | L2: int
E3: 10002 | F3: 石御霏 | J3: 2 | L3: 2
E4: 10003 | F4: 叶辽 | J4: 道具类型（该道具在哪个背包显示1装备 2材料 3特殊 4碎片 5妖魂 6魂印 7法宝） | L4: 道具类型（该道具在哪个背包显示1装备 2材料 3特殊 4碎片 5妖魂 6魂印 7法宝） | Q4: 道具类型（该道具在哪个背包显示1特殊 2碎片 3妖魂 4装备 5法宝 6魂印 7材料）
E5: 10004 | F5: 妲己 | J5: 0 | L5: 0 | M5: 1 | N5: 装备 | O5: 4
E6: 10005 | F6: 兰卿 | M6: 2 | N6: 戒灵材料 | O6: 7
E7: 10006 | F7: 枫云 | J7: 5 | L7: 5 | M7: 3 | N7: 特殊 | O7: 1
E8: 10007 | F8: 应茹 | M8: 4 | N8: 碎片 | O8: 2
E9: 10008 | F9: 颜无雍 | M9: 5 | N9: 妖魂 | O9: 3
E10: 10009 | F10: 祁菲 | M10: 6 | N10: 魂印 | O10: 6
E11: 10010 | F11: 龙吉公主 | J11: 3 | K11: =IFERROR(VLOOKUP(J11,$M$4:$N$11,2,FALSE),"") -> 特殊 | L11: =IFERROR(VLOOKUP(K11,$N$5:$O$11,2,FALSE),"") -> 1 | M11: 7 | N11: 法宝 | O11: 5
E12: 10011 | F12: 尹正霄 | J12: 3 | K12: =IFERROR(VLOOKUP(J12,$M$4:$N$11,2,FALSE),"") -> 特殊 | L12: =IFERROR(VLOOKUP(K12,$N$5:$O$11,2,FALSE),"") -> 1
E13: 10012 | F13: 慕容子期 | J13: 3 | K13: 特殊 | L13: 1
E14: 10013 | F14: 白梦凡
E15: 10014 | F15: 颜无诡
E16: 10015 | F16: 凝儿
E17: 10016 | F17: 枫元正
E18: 10017 | F18: 解幽
E19: 10018 | F19: 紫苏 | J19: 3 | K19: 特殊 | L19: 1
E20: 10019 | F20: 云 | J20: 3 | K20: 特殊 | L20: =IFERROR(VLOOKUP(K20,$N$5:$O$11,2,FALSE),"") -> 1
E21: 10020 | F21: 司空染 | J21: 3 | K21: 特殊 | L21: 1
E22: 10021 | F22: 清然 | J22: 3 | K22: 特殊 | L22: 1
E23: 10022 | F23: 云灵 | J23: 3 | K23: 特殊 | L23: 1
E24: 10023 | F24: 荧荧 | J24: 3 | K24: 特殊 | L24: 1
E25: 10024 | F25: 许槿然 | J25: 3 | K25: 特殊 | L25: 1
E26: 10025 | F26: 炎琪儿 | J26: 3 | K26: 特殊 | L26: 1
E27: 10026 | F27: 楚恒 | J27: 3 | K27: 特殊 | L27: 1
E28: 10027 | F28: 柳月 | J28: 3 | K28: 特殊 | L28: 1
E29: 10028 | F29: 岑以航 | J29: 2 | K29: 戒灵材料 | L29: 7
E30: 10029 | F30: 姜燧 | J30: 3 | K30: 特殊 | L30: 1
E31: 10030 | F31: 晏息 | J31: 3 | K31: 特殊 | L31: 1
E32: 10031 | F32: 冉宜 | J32: 3 | K32: 特殊 | L32: 1
E33: 10032 | F33: 黄天化 | J33: 3 | K33: 特殊 | L33: 1
E34: 10033 | F34: 艾欣 | J34: 3 | K34: 特殊 | L34: 1
E35: 10034 | F35: 影蓟 | J35: 3 | K35: 特殊 | L35: 1
E36: 10035 | F36: 辛夷 | J36: 3 | K36: 特殊 | L36: 1
E37: 10036 | F37: 岑以璇 | J37: 3 | K37: 特殊 | L37: 1
E38: 10037 | F38: 薛苓 | J38: 3 | K38: 特殊 | L38: 1
E39: 10038 | F39: 伏冥 | J39: 3 | K39: 特殊 | L39: 1
E40: 10039 | F40: 呼延腾 | J40: 3 | K40: 特殊 | L40: 1
E41: 10040 | F41: 贾裴武 | J41: 3 | K41: 特殊 | L41: 1
E42: 10041 | F42: 孟灿 | J42: 3 | K42: 特殊 | L42: 1
E43: 10042 | F43: 君墨 | J43: 3 | K43: 特殊 | L43: 1
E44: 10043 | F44: 紫川 | J44: 3 | K44: 特殊 | L44: 1
E45: 10044 | F45: 靖之 | J45: 3 | K45: 特殊 | L45: 1
E46: 10045 | F46: 殷婉儿 | J46: 3 | K46: 特殊 | L46: 1
E47: 10046 | F47: 白木 | J47: 3 | K47: 特殊 | L47: 1
E48: 10047 | F48: 炎炎 | J48: 3 | K48: 特殊 | L48: 1
E49: 10048 | F49: 飒飒 | J49: 3 | K49: 特殊 | L49: 1
E50: 10049 | F50: 淼淼 | J50: 3 | K50: 特殊 | L50: 1
E51: 10050 | F51: 垚垚 | J51: 3 | K51: 特殊 | L51: 1
E52: 10051 | F52: 恍恍 | J52: 3 | K52: 特殊 | L52: 1
E53: 10052 | F53: 黯黯 | J53: 3 | K53: 特殊 | L53: 1
D54: 合成*的碎片，集齐50个碎片可合成。 | E54: 11001 | F54: =F2&"碎片" -> 夏侯鸿天碎片 | H54: =SUBSTITUTE($D$54,"*",F2,1) -> 合成夏侯鸿天的碎片，集齐50个碎片可合成。 | J54: 3 | K54: 特殊 | L54: 1
D55: 合成*的碎片，集齐40个碎片可合成。 | E55: 11002 | F55: =F3&"碎片" -> 石御霏碎片 | H55: =SUBSTITUTE($D$54,"*",F3,1) -> 合成石御霏的碎片，集齐50个碎片可合成。 | J55: 3 | K55: 特殊 | L55: 1
D56: 合成*的碎片，集齐30个碎片可合成。 | E56: 11003 | F56: 叶辽碎片 | H56: 合成叶辽的碎片，集齐50个碎片可合成。 | J56: 3 | K56: 特殊 | L56: 1
E57: 11004 | F57: 妲己碎片 | H57: 合成妲己的碎片，集齐50个碎片可合成。 | J57: 3 | K57: 特殊 | L57: 1
E58: 11005 | F58: 兰卿碎片 | H58: 合成兰卿的碎片，集齐50个碎片可合成。 | J58: 3 | K58: 特殊 | L58: 1
E59: 11006 | F59: 枫云碎片 | H59: 合成枫云的碎片，集齐50个碎片可合成。 | J59: 3 | K59: 特殊 | L59: 1
E60: 11007 | F60: 应茹碎片 | H60: 合成应茹的碎片，集齐50个碎片可合成。 | J60: 3 | K60: 特殊 | L60: 1
E61: 11008 | F61: 颜无雍碎片 | H61: 合成颜无雍的碎片，集齐50个碎片可合成。 | J61: 3 | K61: 特殊 | L61: 1
E62: 11009 | F62: 祁菲碎片 | H62: 合成祁菲的碎片，集齐50个碎片可合成。 | J62: 3 | K62: 特殊 | L62: 1
E63: 11010 | F63: 龙吉公主碎片 | H63: 合成龙吉公主的碎片，集齐50个碎片可合成。 | J63: 3 | K63: 特殊 | L63: 1
E64: 11011 | F64: 尹正霄碎片 | H64: 合成尹正霄的碎片，集齐50个碎片可合成。 | J64: 3 | K64: 特殊 | L64: 1
E65: 11012 | F65: 慕容子期碎片 | H65: 合成慕容子期的碎片，集齐50个碎片可合成。 | J65: 3 | K65: 特殊 | L65: 1
E66: 11013 | F66: 白梦凡碎片 | H66: 合成白梦凡的碎片，集齐50个碎片可合成。 | J66: 3 | K66: 特殊 | L66: 1
E67: 11014 | F67: 颜无诡碎片 | H67: 合成颜无诡的碎片，集齐50个碎片可合成。 | J67: 3 | K67: 特殊 | L67: 1
E68: 11015 | F68: 凝儿碎片 | H68: 合成凝儿的碎片，集齐50个碎片可合成。 | L68: =IFERROR(VLOOKUP(K68,$N$5:$O$11,2,FALSE),"") -> 
E69: 11016 | F69: 枫元正碎片 | H69: 合成枫元正的碎片，集齐50个碎片可合成。
E70: 11017 | F70: 解幽碎片 | H70: 合成解幽的碎片，集齐50个碎片可合成。 | J70: 3 | K70: 特殊 | L70: 1
E71: 11018 | F71: 紫苏碎片 | H71: 合成紫苏的碎片，集齐50个碎片可合成。 | J71: 3 | K71: 特殊 | L71: 1
E72: 11019 | F72: 云碎片 | H72: 合成云的碎片，集齐50个碎片可合成。 | J72: 3 | K72: 特殊 | L72: 1
E73: 11020 | F73: 司空染碎片 | H73: 合成司空染的碎片，集齐50个碎片可合成。 | J73: 3 | K73: 特殊 | L73: 1
E74: 11021 | F74: 清然碎片 | H74: 合成清然的碎片，集齐50个碎片可合成。 | J74: 3 | K74: 特殊 | L74: 1
E75: 11022 | F75: 云灵碎片 | H75: 合成云灵的碎片，集齐50个碎片可合成。 | J75: 3 | K75: 特殊 | L75: 1
E76: 11023 | F76: 荧荧碎片 | H76: 合成荧荧的碎片，集齐50个碎片可合成。 | J76: 3 | K76: =IFERROR(VLOOKUP(J76,$M$4:$N$11,2,FALSE),"") -> 特殊 | L76: 1
E77: 11024 | F77: 许槿然碎片 | H77: =SUBSTITUTE($D$55,"*",F25,1) -> 合成许槿然的碎片，集齐40个碎片可合成。 | J77: 3 | K77: 特殊 | L77: 1
E78: 11025 | F78: 炎琪儿碎片 | H78: =SUBSTITUTE($D$55,"*",F26,1) -> 合成炎琪儿的碎片，集齐40个碎片可合成。 | J78: 2 | K78: 戒灵材料 | L78: 7
E79: 11026 | F79: 楚恒碎片 | H79: 合成楚恒的碎片，集齐40个碎片可合成。 | J79: 2 | K79: 戒灵材料 | L79: =IFERROR(VLOOKUP(K79,$N$5:$O$11,2,FALSE),"") -> 7 | Q79: 11034#40 | R79: =LEFT(Q79,5) -> 11034 | S79: =VLOOKUP(--R79,$E:$F,2,FALSE) -> 影蓟碎片
E80: 11027 | F80: 柳月碎片 | H80: 合成柳月的碎片，集齐40个碎片可合成。 | J80: 2 | K80: 戒灵材料 | L80: 7 | Q80: 11035#40 | R80: =LEFT(Q80,5) -> 11035 | S80: =VLOOKUP(--R80,$E:$F,2,FALSE) -> 辛夷碎片
E81: 11028 | F81: 岑以航碎片 | H81: 合成岑以航的碎片，集齐40个碎片可合成。 | J81: 2 | K81: 戒灵材料 | L81: 7 | Q81: 11044#40 | R81: 11044 | S81: 靖之碎片
E82: 11029 | F82: 姜燧碎片 | H82: 合成姜燧的碎片，集齐40个碎片可合成。 | J82: 2 | K82: 戒灵材料 | L82: 7 | Q82: 11026#40 | R82: 11026 | S82: 楚恒碎片
E83: 11030 | F83: 晏息碎片 | H83: 合成晏息的碎片，集齐40个碎片可合成。 | J83: 2 | K83: 戒灵材料 | L83: 7 | Q83: 11027#40 | R83: 11027 | S83: 柳月碎片
E84: 11031 | F84: 冉宜碎片 | H84: 合成冉宜的碎片，集齐40个碎片可合成。 | J84: 2 | K84: 戒灵材料 | L84: 7 | Q84: 11028#40 | R84: 11028 | S84: 岑以航碎片
E85: 11032 | F85: 黄天化碎片 | H85: 合成黄天化的碎片，集齐40个碎片可合成。 | J85: 2 | K85: 戒灵材料 | L85: 7 | Q85: 11046#40 | R85: 11046 | S85: 白木碎片
E86: 11033 | F86: 艾欣碎片 | H86: 合成艾欣的碎片，集齐40个碎片可合成。 | J86: 2 | K86: 戒灵材料 | L86: 7 | Q86: 11029#40 | R86: 11029 | S86: 姜燧碎片
E87: 11034 | F87: =F35&"碎片" -> 影蓟碎片 | H87: 合成影蓟的碎片，集齐40个碎片可合成。 | J87: 3 | K87: 特殊 | L87: 1 | Q87: 11031#40 | R87: 11031 | S87: 冉宜碎片
E88: 11035 | F88: 辛夷碎片 | H88: 合成辛夷的碎片，集齐40个碎片可合成。 | J88: 3 | K88: 特殊 | L88: 1 | Q88: 11032#40 | R88: 11032 | S88: 黄天化碎片
E89: 11036 | F89: 岑以璇碎片 | H89: 合成岑以璇的碎片，集齐40个碎片可合成。 | J89: 3 | K89: 特殊 | L89: 1 | Q89: 11033#40 | R89: 11033 | S89: 艾欣碎片
E90: 11037 | F90: 薛苓碎片 | H90: 合成薛苓的碎片，集齐40个碎片可合成。 | J90: 3 | K90: 特殊 | L90: 1 | Q90: 11036#40 | R90: 11036 | S90: 岑以璇碎片
E91: 11038 | F91: 伏冥碎片 | H91: 合成伏冥的碎片，集齐40个碎片可合成。 | J91: 3 | K91: 特殊 | L91: 1 | Q91: 11037#40 | R91: 11037 | S91: 薛苓碎片
E92: 11039 | F92: 呼延腾碎片 | H92: 合成呼延腾的碎片，集齐40个碎片可合成。 | J92: 3 | K92: 特殊 | L92: 1 | Q92: 11039#40 | R92: 11039 | S92: 呼延腾碎片
E93: 11040 | F93: 贾裴武碎片 | H93: 合成贾裴武的碎片，集齐40个碎片可合成。 | J93: 3 | K93: 特殊 | L93: 1 | Q93: 11043#40 | R93: 11043 | S93: 紫川碎片
E94: 11041 | F94: 孟灿碎片 | H94: 合成孟灿的碎片，集齐40个碎片可合成。 | J94: 3 | K94: 特殊 | L94: 1 | Q94: 11024#40 | R94: 11024 | S94: 许槿然碎片
E95: 11042 | F95: 君墨碎片 | H95: 合成君墨的碎片，集齐40个碎片可合成。 | J95: 3 | K95: 特殊 | L95: 1 | Q95: 11030#40 | R95: 11030 | S95: 晏息碎片
E96: 11043 | F96: 紫川碎片 | H96: 合成紫川的碎片，集齐40个碎片可合成。 | J96: 3 | K96: 特殊 | L96: 1 | Q96: 11042#40 | R96: 11042 | S96: 君墨碎片
E97: 11044 | F97: 靖之碎片 | H97: 合成靖之的碎片，集齐40个碎片可合成。 | J97: 3 | K97: 特殊 | L97: 1 | Q97: 11045#40 | R97: 11045 | S97: 殷婉儿碎片
E98: 11045 | F98: 殷婉儿碎片 | H98: 合成殷婉儿的碎片，集齐40个碎片可合成。 | J98: 3 | K98: 特殊 | L98: 1 | Q98: 11025#40 | R98: 11025 | S98: 炎琪儿碎片
E99: 11046 | F99: 白木碎片 | H99: 合成白木的碎片，集齐40个碎片可合成。 | J99: 3 | K99: 特殊 | L99: 1 | Q99: 11038#40 | R99: 11038 | S99: 伏冥碎片
E100: 11047 | F100: 炎炎碎片 | H100: =SUBSTITUTE($D$56,"*",F48,1) -> 合成炎炎的碎片，集齐30个碎片可合成。 | J100: 2 | K100: 戒灵材料 | L100: 7 | Q100: 11040#40 | R100: 11040 | S100: 贾裴武碎片
E101: 11048 | F101: 飒飒碎片 | H101: 合成飒飒的碎片，集齐30个碎片可合成。 | J101: 2 | K101: 戒灵材料 | L101: 7 | Q101: 11041#40 | R101: 11041 | S101: 孟灿碎片
E102: 11049 | F102: 淼淼碎片 | H102: 合成淼淼的碎片，集齐30个碎片可合成。 | J102: 2 | K102: 戒灵材料 | L102: 7 | Q102: 11005#50 | R102: 11005 | S102: 兰卿碎片
E103: 11050 | F103: 垚垚碎片 | H103: 合成垚垚的碎片，集齐30个碎片可合成。 | J103: 3 | K103: 特殊 | L103: 1 | Q103: 11006#50 | R103: 11006 | S103: 枫云碎片
E104: 11051 | F104: 恍恍碎片 | H104: 合成恍恍的碎片，集齐30个碎片可合成。 | J104: 3 | K104: 特殊 | L104: 1 | Q104: 11007#50 | R104: 11007 | S104: 应茹碎片
E105: 11052 | F105: 黯黯碎片 | H105: 合成黯黯的碎片，集齐30个碎片可合成。 | J105: 3 | K105: 特殊 | L105: 1 | Q105: 11010#50 | R105: 11010 | S105: 龙吉公主碎片
E106: 12001 | F106: 3星随机碎片 | H106: 搜集30个随机碎片可进行合成，合成后获得随机3星猎妖师。 | J106: 3 | K106: 特殊 | L106: 1 | Q106: 11011#50 | R106: 11011 | S106: 尹正霄碎片
E107: 12002 | F107: 水系4星碎片 | H107: 搜集40个水系4星随机碎片可进行合成，合成后获得随机4星水元素猎妖师。 | J107: 3 | K107: 特殊 | L107: 1 | Q107: 11013#50 | R107: 11013 | S107: 白梦凡碎片
E108: 12003 | F108: 火系4星碎片 | H108: 搜集40个火系4星随机碎片可进行合成，合成后获得随机4星火元素猎妖师。 | J108: 3 | K108: 特殊 | L108: 1 | Q108: 11016#50 | R108: 11016 | S108: 枫元正碎片
E109: 12004 | F109: 地系4星碎片 | H109: 搜集40个地系4星随机碎片可进行合成，合成后获得随机4星地元素猎妖师。 | J109: 3 | K109: 特殊 | L109: 1 | Q109: 11020#50 | R109: 11020 | S109: 司空染碎片
E110: 12005 | F110: 风系4星碎片 | H110: 搜集40个风系4星随机碎片可进行合成，合成后获得随机4星风元素猎妖师。 | J110: 3 | K110: 特殊 | L110: 1 | Q110: 11021#50 | R110: 11021 | S110: 清然碎片
E111: 12006 | F111: 光系4星碎片 | H111: 搜集40个光系4星随机碎片可进行合成，合成后获得随机4星光元素猎妖师。 | J111: 3 | K111: 特殊 | L111: 1 | Q111: 11022#50 | R111: 11022 | S111: 云灵碎片
E112: 12007 | F112: 暗系4星碎片 | H112: 搜集40个暗系4星随机碎片可进行合成，合成后获得随机4星暗元素猎妖师。 | J112: 3 | K112: 特殊 | L112: 1 | Q112: 11002#50 | R112: 11002 | S112: 石御霏碎片
E113: 12008 | F113: 水系5星碎片 | H113: 搜集50个水系5星随机碎片可进行合成，合成后获得随机5星水元素猎妖师。 | J113: 3 | K113: 特殊 | L113: 1 | Q113: 11003#50 | R113: 11003 | S113: 叶辽碎片
E114: 12009 | F114: 火系5星碎片 | H114: 搜集50个火系5星随机碎片可进行合成，合成后获得随机5星火元素猎妖师。 | J114: 3 | K114: 特殊 | L114: 1
E115: 12010 | F115: 地系5星碎片 | H115: 搜集50个地系5星随机碎片可进行合成，合成后获得随机5星地元素猎妖师。 | J115: 3 | K115: 特殊 | L115: 1
E116: 12011 | F116: 风系5星碎片 | H116: 搜集50个风系5星随机碎片可进行合成，合成后获得随机5星风元素猎妖师。 | J116: 3 | K116: 特殊 | L116: 1
E117: 12012 | F117: 4星随机碎片 | H117: 搜集40个4星随机碎片可进行合成，合成后获得随机4星猎妖师。 | J117: 3 | K117: 特殊 | L117: 1
E118: 12013 | F118: 5星随机碎片 | H118: 搜集50个5星随机碎片可进行合成，合成后获得随机5星猎妖师。 | J118: 3 | K118: 特殊 | L118: 1
E119: 12014 | F119: 5星随机碎片 | H119: 搜集50个5星随机碎片可进行合成，合成后获得随机5星猎妖师。 | J119: 3 | K119: 特殊 | L119: 1
E120: 12015 | F120: 5星随机碎片 | H120: 搜集50个5星随机碎片可进行合成，合成后获得随机5星猎妖师。 | J120: 3 | K120: 特殊 | L120: 1
E121: 12016 | F121: 5星随机碎片 | H121: 搜集50个5星随机碎片可进行合成，合成后获得随机5星猎妖师。 | J121: 3 | K121: 特殊 | L121: 1
E122: 12017 | F122: 5星随机碎片 | H122: 搜集50个5星随机碎片可进行合成，合成后获得随机5星猎妖师。 | J122: 3 | K122: 特殊 | L122: 1
E123: 12018 | F123: 5星随机碎片 | H123: 搜集50个5星随机碎片可进行合成，合成后获得随机5星猎妖师。 | J123: 3 | K123: 特殊 | L123: 1
E124: 12019 | F124: 光暗5星碎片 | H124: 搜集50个光暗5星随机碎片可进行合成，合成后获得随机5星光暗元素猎妖师。 | J124: 3 | K124: 特殊 | L124: 1
E125: 13024 | F125: =F25 -> 许槿然 | J125: 3 | K125: 特殊 | L125: 1
E126: 13025 | F126: =F26 -> 炎琪儿 | J126: 3 | K126: 特殊 | L126: 1
E127: 13026 | F127: 楚恒 | J127: 3 | K127: 特殊 | L127: 1
E128: 13027 | F128: 柳月 | J128: 3 | K128: 特殊 | L128: 1
E129: 13028 | F129: 岑以航 | J129: 3 | K129: 特殊 | L129: 1
E130: 13029 | F130: 姜燧 | J130: 3 | K130: 特殊 | L130: 1
E131: 13030 | F131: 晏息 | J131: 3 | K131: 特殊 | L131: 1
E132: 13031 | F132: 冉宜 | J132: 3 | K132: 特殊 | L132: 1
E133: 13032 | F133: 黄天化 | J133: 3 | K133: 特殊 | L133: 1
E134: 13033 | F134: 艾欣 | J134: 3 | K134: 特殊 | L134: 1
E135: 13034 | F135: 影蓟 | J135: 3 | K135: 特殊 | L135: 1
E136: 13035 | F136: 辛夷 | J136: 3 | K136: 特殊 | L136: 1
E137: 13036 | F137: 岑以璇 | J137: 3 | K137: 特殊 | L137: 1
E138: 13037 | F138: 薛苓 | J138: 3 | K138: 特殊 | L138: 1
E139: 13038 | F139: 伏冥 | J139: 3 | K139: 特殊 | L139: 1
E140: 13039 | F140: 呼延腾 | J140: 3 | K140: =IFERROR(VLOOKUP(J140,$M$4:$N$11,2,FALSE),"") -> 特殊 | L140: 1
E141: 13040 | F141: 贾裴武 | J141: 3 | K141: 特殊 | L141: 1
E142: 13041 | F142: 孟灿 | J142: 3 | K142: 特殊 | L142: 1
E143: 13042 | F143: 君墨 | J143: 3 | K143: 特殊 | L143: =IFERROR(VLOOKUP(K143,$N$5:$O$11,2,FALSE),"") -> 1
E144: 13043 | F144: 紫川 | J144: 3 | K144: 特殊 | L144: 1
E145: 13044 | F145: 靖之 | J145: 3 | K145: 特殊 | L145: 1
E146: 13045 | F146: 殷婉儿 | J146: 3 | K146: 特殊 | L146: 1
E147: 13046 | F147: 白木 | J147: 3 | K147: 特殊 | L147: 1
D148: 合成*的碎片，集齐50个碎片可合成。 | E148: =E125+1000 -> 14024 | F148: =F125&"5星碎片" -> 许槿然5星碎片 | H148: =SUBSTITUTE($D$148,"*",F125,1) -> 合成许槿然的碎片，集齐50个碎片可合成。 | J148: 3 | K148: 特殊 | L148: 1
E149: 14025 | F149: =F126&"5星碎片" -> 炎琪儿5星碎片 | H149: =SUBSTITUTE($D$148,"*",F126,1) -> 合成炎琪儿的碎片，集齐50个碎片可合成。 | J149: 3 | K149: 特殊 | L149: 1
E150: 14026 | F150: 楚恒5星碎片 | H150: 合成楚恒的碎片，集齐50个碎片可合成。 | J150: 3 | K150: 特殊 | L150: 1
E151: 14027 | F151: 柳月5星碎片 | H151: 合成柳月的碎片，集齐50个碎片可合成。 | J151: 3 | K151: 特殊 | L151: 1
E152: 14028 | F152: 岑以航5星碎片 | H152: 合成岑以航的碎片，集齐50个碎片可合成。 | J152: 3 | K152: 特殊 | L152: 1
E153: 14029 | F153: 姜燧5星碎片 | H153: 合成姜燧的碎片，集齐50个碎片可合成。 | J153: 3 | K153: 特殊 | L153: 1
E154: 14030 | F154: 晏息5星碎片 | H154: 合成晏息的碎片，集齐50个碎片可合成。 | J154: 3 | K154: 特殊 | L154: 1
E155: 14031 | F155: 冉宜5星碎片 | H155: 合成冉宜的碎片，集齐50个碎片可合成。 | J155: 3 | K155: 特殊 | L155: 1
E156: 14032 | F156: 黄天化5星碎片 | H156: 合成黄天化的碎片，集齐50个碎片可合成。 | J156: 3 | K156: 特殊 | L156: 1
E157: 14033 | F157: 艾欣5星碎片 | H157: 合成艾欣的碎片，集齐50个碎片可合成。 | J157: 3 | K157: 特殊 | L157: 1
E158: 14034 | F158: 影蓟5星碎片 | H158: 合成影蓟的碎片，集齐50个碎片可合成。 | J158: 3 | K158: 特殊 | L158: 1
E159: 14035 | F159: 辛夷5星碎片 | H159: 合成辛夷的碎片，集齐50个碎片可合成。 | J159: 3 | K159: 特殊 | L159: 1
E160: 14036 | F160: 岑以璇5星碎片 | H160: 合成岑以璇的碎片，集齐50个碎片可合成。 | J160: 3 | K160: 特殊 | L160: 1
E161: 14037 | F161: 薛苓5星碎片 | H161: 合成薛苓的碎片，集齐50个碎片可合成。 | J161: 3 | K161: 特殊 | L161: 1
E162: 14038 | F162: 伏冥5星碎片 | H162: 合成伏冥的碎片，集齐50个碎片可合成。 | J162: 3 | K162: 特殊 | L162: 1
E163: 14039 | F163: 呼延腾5星碎片 | H163: 合成呼延腾的碎片，集齐50个碎片可合成。 | J163: 3 | K163: 特殊 | L163: 1
E164: 14040 | F164: 贾裴武5星碎片 | H164: 合成贾裴武的碎片，集齐50个碎片可合成。 | J164: 3 | K164: 特殊 | L164: 1
E165: 14041 | F165: 孟灿5星碎片 | H165: 合成孟灿的碎片，集齐50个碎片可合成。 | J165: 3 | K165: 特殊 | L165: 1
E166: 14042 | F166: 君墨5星碎片 | H166: 合成君墨的碎片，集齐50个碎片可合成。 | J166: 3 | K166: 特殊 | L166: 1
E167: 14043 | F167: 紫川5星碎片 | H167: 合成紫川的碎片，集齐50个碎片可合成。 | J167: 3 | K167: 特殊 | L167: 1
E168: 14044 | F168: 靖之5星碎片 | H168: 合成靖之的碎片，集齐50个碎片可合成。 | J168: 3 | K168: 特殊 | L168: 1
E169: 14045 | F169: 殷婉儿5星碎片 | H169: 合成殷婉儿的碎片，集齐50个碎片可合成。 | J169: 3 | K169: 特殊 | L169: 1
E170: 14046 | F170: 白木5星碎片 | H170: 合成白木的碎片，集齐50个碎片可合成。 | J170: 3 | K170: 特殊 | L170: 1
E171: 16024 | F171: =F125 -> 许槿然 | J171: 3 | K171: 特殊 | L171: 1
E172: 16025 | F172: =F126 -> 炎琪儿 | J172: 3 | K172: 特殊 | L172: 1
E173: 16026 | F173: 楚恒 | J173: 3 | K173: 特殊 | L173: 1
E174: 16027 | F174: 柳月 | J174: 3 | K174: 特殊 | L174: 1
E175: 16028 | F175: 岑以航 | J175: 3 | K175: 特殊 | L175: 1
E176: 16029 | F176: 姜燧 | J176: 3 | K176: 特殊 | L176: 1
E177: 16030 | F177: 晏息 | J177: 3 | K177: 特殊 | L177: 1
E178: 16031 | F178: 冉宜 | J178: 3 | K178: 特殊 | L178: 1
E179: 16032 | F179: 黄天化 | J179: 3 | K179: 特殊 | L179: 1
E180: 16033 | F180: 艾欣 | J180: 3 | K180: 特殊 | L180: 1
E181: 16034 | F181: 影蓟 | J181: 3 | K181: 特殊 | L181: 1
E182: 16035 | F182: 辛夷 | J182: 3 | K182: 特殊 | L182: 1
E183: 16036 | F183: 岑以璇 | J183: 3 | K183: 特殊 | L183: 1
E184: 16037 | F184: 薛苓 | J184: 3 | K184: 特殊 | L184: 1
E185: 16038 | F185: 伏冥 | J185: 3 | K185: 特殊 | L185: 1
E186: 16039 | F186: 呼延腾 | J186: 3 | K186: 特殊 | L186: 1
E187: 16040 | F187: 贾裴武 | J187: 3 | K187: 特殊 | L187: 1
E188: 16041 | F188: 孟灿 | J188: 3 | K188: 特殊 | L188: 1
E189: 16042 | F189: 君墨 | J189: 3 | K189: 特殊 | L189: 1
E190: 16043 | F190: 紫川 | J190: 3 | K190: 特殊 | L190: 1
E191: 16044 | F191: 靖之 | J191: 3 | K191: 特殊 | L191: 1
E192: 16045 | F192: 殷婉儿 | J192: 3 | K192: 特殊 | L192: 1
E193: 16046 | F193: 白木 | J193: 3 | K193: 特殊 | L193: 1
J194: 3 | K194: 特殊 | L194: 1
J195: 3 | K195: 特殊 | L195: 1
J196: 3 | K196: 特殊 | L196: 1
J197: 3 | K197: 特殊 | L197: 1
J198: 3 | K198: 特殊 | L198: 1
J199: 3 | K199: 特殊 | L199: 1
J200: 3 | K200: 特殊 | L200: 1
... 690 more rows
